Cogmind - Beta 16 @@@ ROGUE MODE // 2025.11.09 @ 13:24:44 Player: Plexion Result: Establishing 0b11! Performance ------------- Evolutions (9) 4500 Regions Visited (31) 6200 Robots Destroyed (446) 2230 Value Destroyed (26765) 26765 Prototype IDs (376) 7520 Alien Tech Used (8) 1600 Bonus (68081) 68081 TOTAL SCORE: 116896 Bonus ------- High Alert Combat Kills 5957 Follower Combat Kills 8282 Destroyed Unchained 1000 Forged Quantum Companion 2000 Entered Garrisons 600 Used RIF Installer 1500 Network Hubs Disabled 200 Registered with UFD 300 Met Optimus in HQ 500 Built Enhanced Grunts 300 Met R17 at Cetus 500 Found Hidden Lab 3000 Met R17 at Research 2000 Recovered Sigix Corpse 2000 Destroyed MAIN.C Guards 500 Met MAIN.C 5000 Destroyed MAIN.C Shell 5000 Destroyed MAIN.C 10000 Met Architect 300 Destroyed A8 300 Destroyed A6 400 Destroyed A5 500 Destroyed A3 800 Destroyed Architect 15000 Win 3000 Friendly Fire -858 Cogmind --------- Core Integrity 981/1600 Matter 285/300 Energy 490/500 System Corruption 2% Temperature Cool (16) Movement Hovering (36) Location 0b11 Command Parts ------- > --- POWER (3) -------- Zero-point Reactor Zero-point Reactor Concept Zero-point Core > --- PROPULSION (8) --- Experimental Antigrav System Gravjet Array Concept Combat Aerolev Unit Concept Gyrokinetic System CL-0N3's Metamass Displacer > --- UTILITY (13) ----- Concept Antigrav Storage Unit Experimental Melee Analysis Suite Concept Weapon Articulator Experimental Core Analyzer Experimental Armor Integrity Analyzer Nanoactuators Advanced Force Booster Concept Reaction Jets Experimental Phase Shifter Centrium Linked Plating Heavy Regenerative Plating Concept Energy Mantle > --- WEAPON (2) ------- A3's Sniper Rifle Superquantum Companion > --- INVENTORY (25) --- Zero-point Reactor Experimental Antigrav System Gravjet Array Concept Combat Aerolev Unit 2N-1CE's Frost Array Concept Chromion Battery (800) Concept Chromion Battery (800) Deep Structural Scanner Experimental Reaction Control System Advanced Phase Shifter Centrium Linked Plating Centrium Linked Plating Concept RG22 Armor Graphene Brace AEGIS Remote Shield Concept Impact Drone Bay (2/6) Transdimensional Reconstructor High-powered Transdimensional Reconstructor Modified Sigix Sheargun Modified Sigix Sheargun Concept Plasma Driver Perforator Sigix Corpse Peak State ------------ > --- POWER ------------ Improved Quantum Reactor Concept Zero-point Core Concept Zero-point Core > --- PROPULSION ------- Experimental Antigrav System Gravjet Array Concept Combat Aerolev Unit Concept Gyrokinetic System CL-0N3's Metamass Displacer > --- UTILITY ---------- 2N-1CE's Frost Array Concept Antigrav Storage Unit Experimental Melee Analysis Suite Concept Weapon Articulator Experimental Core Analyzer Femtoactuators Experimental Reaction Control System Concept Cloak Mesh Concept Cloak Mesh Centrium Medium Armor Plating Concept RG22 Armor Concept Energy Mantle System Mapper > --- WEAPON ----------- Concept Plasma Driver Superquantum Companion > --- INVENTORY -------- Experimental Antigrav System Gravjet Array Concept Combat Aerolev Unit Concept Chromion Battery Concept Chromion Battery Deep Structural Scanner Seismic Detector Nanoactuators Advanced Force Booster Concept Reaction Jets Graphene Brace Concept Antimissile System Relay Coupler [Proto] Crosscalibrator Concept Impact Drone Bay Transdimensional Reconstructor Transdimensional Reconstructor Compact HERF Cannon Compact HERF Cannon Cooled Nova Cannon Perforator Guided Remote Datajack Experimental Jetlance [Rating: 319] Favorites ----------- Power Concept Zero-point Core Engine Improved Ion Engine Power Core Concept Zero-point Core Reactor Light Quantum Reactor Propulsion Advanced Treads Treads Advanced Treads Leg Enhanced Biometal Leg Wheel Armored Huge Wheel Hover Unit Experimental Antigrav System Utility Advanced Melee Analysis Suite Device Seismic Detector Storage Huge Storage Unit Processor Advanced Melee Analysis Suite Hackware Advanced Hacking Suite Protection Centrium Medium Armor Plating Weapon Companion Sword Energy Gun Advanced Beam Rifle Energy Cannon Concept Plasma Driver Ballistic Gun Improved Assault Rifle Ballistic Cannon Gauss Cannon Launcher Tactical Quantum Warhead Special Weapon Improved Remote Datajack Impact Weapon Hammer Slashing Weapon Companion Sword Piercing Weapon Experimental Jetlance Build | -11 -10 -10 -10 -9 -8 -8 -8 -8 -6 -6 -6 -6 -5 -5 -5 -5 -5 -5 -4 -4 -4 -4 -4 -3 -3 -3 -2 -2 -1 -1 -1 ------- Run | Yrd Mat Min Exi Min Mat Sto Rec Scr Fac Gar Fac Gar Fac Ext Cet Arc Hub Gar Fac Was Fac Arm Lab Res Qua Frg Res Tes Acc Com Ac0 Slots Evolved 18 | . . . . . 4 . . . 4 . . . 2 . . . . . 2 . . . . 2 . . 2 . 2 . . Power 2 | . . . . . . . . . . . . . . . . . . . . . . . . 1 . . . . 1 . . Propulsion 5 | . . . . . 2 . . . . . . . 1 . . . . . 1 . . . . . . . 1 . . . . Utility 11 | . . . . . 2 . . . 4 . . . 1 . . . . . 1 . . . . 1 . . 1 . 1 . . Weapon . | . . . . . . . . . . . . . . . . . . . . . . . . . . . . . . . . Parts Attached 320 | 8 6 5 . . 35 17 4 9 20 3 6 10 7 5 10 4 7 7 5 2 15 29 3 4 7 52 10 7 2 14 7 Power 33 | 1 . 1 . . 2 1 . 1 3 . . 1 1 1 1 . . 1 . . 3 6 . 1 . 4 . . 1 2 2 Engine 6 | 1 . 1 . . 2 1 . . 1 . . . . . . . . . . . . . . . . . . . . . . Core 8 | . . . . . . . . 1 2 . . . 1 1 . . . . . . . 1 . . . 2 . . . . . Reactor 19 | . . . . . . . . . . . . 1 . . 1 . . 1 . . 3 5 . 1 . 2 . . 1 2 2 Propulsion 94 | 2 1 2 . . 13 9 . 2 5 1 1 1 1 1 4 1 . 1 2 . 6 12 . 2 1 23 1 1 1 . . Treads 18 | 2 1 1 . . 4 4 . . 2 1 . 1 . 1 . . . . . . . 1 . . . . . . . . . Leg 54 | . . . . . 7 5 . . . . . . . . 4 1 . 1 2 . 6 11 . 2 1 14 . . . . . Wheel 10 | . . 1 . . 2 . . 2 3 . 1 . 1 . . . . . . . . . . . . . . . . . . Hover 12 | . . . . . . . . . . . . . . . . . . . . . . . . . . 9 1 1 1 . . Flight . | . . . . . . . . . . . . . . . . . . . . . . . . . . . . . . . . Utility 139 | 2 3 1 . . 11 2 2 3 11 2 4 7 4 2 4 3 5 4 2 1 6 6 2 . 5 22 8 3 . 12 2 Device 58 | 1 . 1 . . 7 . 1 1 2 2 . 2 1 . 2 1 3 2 1 . 3 3 . . 1 9 6 2 . 7 . Storage 6 | 1 2 . . . 1 . . . . . 1 . . . . . . . . . . . . . . 1 . . . . . Processor 20 | . 1 . . . 1 . 1 1 4 . 1 . . . . 1 1 . . . . 1 . . . 5 1 . . 2 . Hackware 24 | . . . . . . . . . 3 . 2 1 3 1 . . 1 2 1 1 1 2 1 . 2 1 . 1 . 1 . Protection 31 | . . . . . 2 2 . 1 2 . . 4 . 1 2 1 . . . . 2 . 1 . 2 6 1 . . 2 2 Artifact . | . . . . . . . . . . . . . . . . . . . . . . . . . . . . . . . . Weapon 54 | 3 2 1 . . 9 5 2 3 1 . 1 1 1 1 1 . 2 1 1 1 . 5 1 1 1 3 1 3 . . 3 Energy Gun 11 | 2 . . . . 3 3 2 . . . . . . . . . . . . . . . . . . . . . . . 1 Energy Cannon 8 | . . . . . . . . . . . . . . . . . . . . . . 2 . 1 . 1 1 2 . . 1 Ballistic Gun 8 | 1 2 1 . . 1 . . . . . . . . 1 1 . . . . . . . . . . . . . . . 1 Ballistic Cannon 6 | . . . . . 4 . . . 1 . . . . . . . . . . . . . . . . . . 1 . . . Launcher 3 | . . . . . . 1 . . . . . 1 . . . . . . . 1 . . . . . . . . . . . Special Weapon 8 | . . . . . . . . . . . 1 . 1 . . . 2 . 1 . . 2 1 . . . . . . . . Impact Weapon 1 | . . . . . . . . 1 . . . . . . . . . . . . . . . . . . . . . . . Slashing Weapon 6 | . . . . . 1 1 . 1 . . . . . . . . . 1 . . . 1 . . 1 . . . . . . Piercing Weapon 3 | . . . . . . . . 1 . . . . . . . . . . . . . . . . . 2 . . . . . Special Melee Weapon . | . . . . . . . . . . . . . . . . . . . . . . . . . . . . . . . . Unidentified Prototypes 42 | . 1 . . . 1 2 2 2 . . . . . . 2 . 1 2 1 1 1 6 5 . 2 1 . 4 1 4 3 Corrupted Parts 1 | . . . . . . . . . . . . . . . . . . 1 . . . . . . . . . . . . . System Corruption 6 | . . . . . . . . . . . . . . . . . . 6 . . . . . . . . . . . . . Parts Lost 97 | . . 7 . . 12 3 . 2 6 . . 3 . 1 1 . 1 1 . . 9 19 . 1 . 26 . . . 1 4 Power 15 | . . 1 . . 1 1 . 1 2 . . 1 . . . . . . . . 3 2 . . . 2 . . . . 1 Propulsion 44 | . . 3 . . 6 1 . 1 3 . . 1 . . . . . 1 . . 3 9 . 1 . 15 . . . . . Utility 26 | . . 1 . . 2 1 . . 1 . . 1 . . 1 . 1 . . . 2 6 . . . 8 . . . . 2 Weapon 12 | . . 2 . . 3 . . . . . . . . 1 . . . . . . 1 2 . . . 1 . . . 1 1 Highest Loss Streak 12 | . . 4 . . 10 2 . 2 5 . . 1 . 1 1 . 1 1 . . 2 12 . 1 . 8 . . . 1 1 To Critical Strikes 2 | . . 1 . . . . . . . . . . . . . . . 1 . . . . . . . . . . . . . Average Backups 21 | 1 10 13 12 13 17 19 20 19 18 18 22 23 23 23 24 24 24 24 23 24 23 24 10 23 23 23 23 22 21 22 22 Power . | . 1 1 1 1 . . 1 1 . . 1 . . . 1 1 2 1 1 1 1 1 . 1 1 . 1 1 . 1 1 Propulsion 2 | . 1 1 1 1 . 3 2 1 3 2 2 3 3 3 2 . 1 1 1 . . 2 1 3 4 3 2 1 2 3 3 Utility 12 | . 1 3 3 3 7 8 9 8 7 10 13 14 15 13 13 17 16 17 17 20 19 16 5 14 12 12 14 14 12 10 13 Weapon 4 | . 6 8 7 7 8 7 7 7 5 4 4 4 5 5 6 5 3 2 2 3 2 2 1 2 3 3 3 2 3 4 2 Tool/Special . | . . . . . . . . . . . . . . . . . . . . . . . . . . . . . . . . Unused Backups 75 | . . . . . 3 7 . 6 3 1 2 7 . . 1 2 5 2 1 2 1 1 2 1 2 9 . 2 . 4 11 Power 5 | . . . . . . . . . . . . . . . 1 . . . 1 . . 1 . . . 1 . . . . 1 Propulsion 24 | . . . . . . 4 . 2 3 . 1 4 . . . . . . . 1 . . 1 1 . 3 . . . 2 2 Utility 27 | . . . . . 1 . . 2 . . 1 3 . . . 1 3 2 . . 1 . 1 . 1 3 . 2 . . 6 Weapon 13 | . . . . . 1 3 . 2 . . . . . . . 1 2 . . 1 . . . . . 1 . . . 2 . Tool/Special 6 | . . . . . 1 . . . . 1 . . . . . . . . . . . . . . 1 1 . . . . 2 Average Slot Usage (%) 90 | . 99 95 100 100 89 99 100 93 83 85 86 81 77 81 89 95 100 99 98 100 99 91 65 89 89 85 90 90 87 84 82 Engine 2 | . 14 11 14 14 7 8 9 6 4 . . . . . . . . . . . . . . . . . . . . . . Core 2 | . . . . . . . . 2 . 6 6 2 1 5 3 . . . . . . . . . . 4 8 8 7 7 4 Reactor 2 | . . . . . . . . . . . . 3 3 . 1 5 5 5 5 5 4 4 2 9 9 4 . . 2 3 5 Treads 8 | . 28 24 14 14 11 14 36 30 12 12 13 7 5 5 3 . . . . . . . . . . . . . . . . Leg 10 | . . . . . 13 21 . . . . . . . . 6 28 29 28 30 31 30 25 20 21 21 16 . . . . . Wheel 2 | . . 3 14 14 5 . . 5 8 6 6 6 6 11 7 . . . . . . . . . . . . . . . . Hover 3 | . . . . . . . . . . . . . . . . . . . . . . . . . . 1 25 25 19 19 19 Device 12 | . 11 12 14 14 13 17 13 14 9 12 6 11 12 9 5 10 4 6 9 5 5 8 5 8 8 10 21 21 26 27 22 Storage 6 | . 14 14 14 14 9 9 9 9 6 6 6 6 5 5 5 5 5 5 5 5 5 5 2 4 4 4 4 4 3 3 3 Processor 12 | . 1 . . . 7 . 4 . 16 20 20 20 17 17 17 22 28 25 21 21 21 20 15 13 12 16 8 8 7 8 11 Hackware 4 | . . . . . . . . . 9 . 5 1 2 6 5 5 6 4 5 9 9 10 11 13 12 6 4 4 3 . . Protection 7 | . . . . . 3 9 9 9 4 6 6 6 5 8 16 6 5 8 10 10 9 4 1 9 10 9 10 10 6 3 7 Energy Gun 3 | . 3 . . . 8 14 13 10 2 4 3 3 . . . . . 3 1 . 1 . . . . . . . . . . Ballistic Gun 2 | . 24 28 28 28 1 . . . . . . . . 1 5 2 2 . . . . . . . . . . . . . 1 Special Weapon 1 | . . . . . . . . . . . 2 2 5 . . . 2 1 3 5 3 2 . 3 2 . . . . . . Slashing Weapon 3 | . . . . . . 3 4 2 6 6 6 6 5 5 5 5 5 5 5 5 5 5 5 4 4 4 4 4 3 3 3 Peak Build Rating 319 | 7 14 13 10 12 31 36 45 47 72 75 77 94 97 102 117 133 139 144 156 155 156 154 176 188 199 266 283 283 313 319 313 Average Rating 130 | 5 11 11 10 11 22 31 37 41 58 71 75 86 94 94 108 125 135 138 152 151 143 137 119 187 184 214 273 270 308 310 303 On Entrance 117 | . 7 13 10 10 12 24 36 41 36 72 74 68 87 96 102 116 132 139 140 154 152 134 141 174 187 191 240 272 281 313 291 Avg Prop Armor Cover (%) 9 | . . 12 12 12 12 . . 14 16 8 9 11 11 11 11 . . . . . . 10 47 . . 2 2 3 2 . . Naked Turns . | . . . . . . . . . . . . . . . . . . . . . . . . . . . . . . . . Heaviest Build 149 | 13 50 50 49 49 65 61 61 64 84 84 122 126 131 126 134 134 120 121 121 119 120 117 118 142 143 149 97 102 116 135 139 Greatest Support 206 | 40 40 40 16 16 60 88 88 88 28 28 28 28 44 60 96 126 126 126 149 149 149 170 200 203 206 206 128 128 140 140 140 Greatest Overweight (x) 17 | . 1 3 3 3 17 2 . 6 7 2 4 4 4 2 2 1 . . . . . 2 . . . 1 . 1 . . 1 Average Overweight (x) . | . . 1 3 3 1 . . . 3 2 3 3 3 1 1 . . . . . . . . . . . . . . . . Largest Inventory Capacity 25 | 8 20 20 20 20 20 20 20 20 20 20 25 25 25 25 25 25 25 25 25 25 25 25 25 25 25 25 25 25 25 25 25 Average Capacity 23 | 7 15 20 20 20 19 20 20 20 20 20 24 25 25 25 25 25 25 25 25 25 25 25 13 25 25 25 25 25 25 25 25 Most Carried 25 | 2 15 16 12 14 20 20 20 20 20 20 25 25 25 25 25 25 25 25 24 25 25 25 25 25 25 25 25 25 25 25 25 Average Carried 21 | 1 10 13 12 13 17 19 19 19 18 19 23 24 24 24 24 24 24 24 23 24 23 24 9 24 24 24 24 24 23 24 24 Final Capacity 25 | 8 20 20 20 20 20 20 20 20 20 20 25 25 25 25 25 25 25 25 25 25 25 25 25 25 25 25 25 25 25 25 25 Final Carried 25 | 2 15 12 12 14 20 20 20 20 20 20 23 25 24 24 23 25 24 24 24 25 22 25 25 23 23 25 25 25 24 25 25 Scrap Suit Usage (%) 1 | . . . . . . . . 10 . . . . . . . . . . . . . . . . . . . . . . . Parts Cannibalized 1 | . . . . . . . . 1 . . . . . . . . . . . . . . . . . . . . . . . Class Distribution -------------------- 21% | Scavenger-Mutant 21% | Mutant 18% | Bothacker-Mutant 16% | Commander-Mutant 6% | Scavenger-Gladiator 5% | Hacker-Mutant 4% | Hacker-Gladiator Dominant Class ---------------- Mutant | -10/Materials Mutant | -10/Mines Mutant | -10/Exiles Mutant | -9/Mines Scavenger-Mutant | -8/Materials Scavenger-Mutant | -8/Storage Commander-Mutant | -8/Recycling Commander-Mutant | -8/Scraptown Hacker-Mutant | -6/Factory Mutant | -6/Garrison Mutant | -6/Factory Bothacker-Mutant | -6/Garrison Bothacker-Mutant | -5/Factory Commander-Mutant | -5/Extension Commander-Mutant | -5/Cetus Commander-Mutant | -5/Archives Scavenger-Mutant | -5/Hub_04(d) Bothacker-Mutant | -5/Garrison Bothacker-Mutant | -4/Factory Bothacker-Mutant | -4/Waste Scavenger-Mutant | -4/Factory Bothacker-Mutant | -4/Armory Mutant | -4/Lab Bothacker-Mutant | -3/Research Bothacker-Mutant | -3/Quarantine Scavenger-Gladiator | -3/Protoforge Gladiator | -2/Research Hacker-Gladiator | -2/Testing Hacker-Gladiator | -1/Access Scavenger-Mutant | -1/Command Scavenger-Mutant | -1/Access_0 Resources | -11 -10 -10 -10 -9 -8 -8 -8 -8 -6 -6 -6 -6 -5 -5 -5 -5 -5 -5 -4 -4 -4 -4 -4 -3 -3 -3 -2 -2 -1 -1 -1 ----------- Run | Yrd Mat Min Exi Min Mat Sto Rec Scr Fac Gar Fac Gar Fac Ext Cet Arc Hub Gar Fac Was Fac Arm Lab Res Qua Frg Res Tes Acc Com Ac0 Matter Collected 9394 | 253 245 332 . . 825 270 60 110 236 90 70 321 157 241 157 83 157 200 83 5 933 1090 . 332 197 1081 407 502 . 520 437 Remotely . | . . . . . . . . . . . . . . . . . . . . . . . . . . . . . . . . Salvage Created 26983 | 22 410 287 . . 797 911 476 87 776 639 225 413 310 602 253 416 546 1291 98 . 2467 1973 . 563 595 4881 1890 1598 . 2704 1753 Parts 1212 | 5 37 9 . . 53 39 22 1 42 17 9 12 6 25 9 34 25 53 1 . 116 73 . 26 42 239 100 77 . 72 68 Haulers Intercepted 11 | . 1 . . . 2 2 . . 1 . . . . . . . . . 1 . 1 . . 1 . . 1 1 . . . Recyclers Shooed 8 | . . . . . . 2 . . . . . . . . . . . . . . 3 . . 3 . . . . . . . Parts Field Recycled . | . . . . . . . . . . . . . . . . . . . . . . . . . . . . . . . . Retrieved Matter . | . . . . . . . . . . . . . . . . . . . . . . . . . . . . . . . . Parts Self-Destructed . | . . . . . . . . . . . . . . . . . . . . . . . . . . . . . . . . Prevented . | . . . . . . . . . . . . . . . . . . . . . . . . . . . . . . . . Parts Restored 5 | . . . . . . . . . . . . . . . . . . . . . . . . . . 2 3 . . . . Faulty 5 | . . . . . . . . . . . . . . . . . . . . . . . . . . 2 3 . . . . Kills | -11 -10 -10 -10 -9 -8 -8 -8 -8 -6 -6 -6 -6 -5 -5 -5 -5 -5 -5 -4 -4 -4 -4 -4 -3 -3 -3 -2 -2 -1 -1 -1 ------- Run | Yrd Mat Min Exi Min Mat Sto Rec Scr Fac Gar Fac Gar Fac Ext Cet Arc Hub Gar Fac Was Fac Arm Lab Res Qua Frg Res Tes Acc Com Ac0 Combat Hostiles Destroyed 363 | . 14 15 . . 24 16 4 . 7 7 3 9 2 9 2 . 7 24 . . 29 32 . 3 7 71 22 20 . 19 17 Melee 230 | . . . . . 1 . 3 . 7 3 2 4 2 5 . . 6 19 . . 19 22 . 2 7 60 22 18 . 17 11 Guns 85 | . 14 15 . . 17 16 . . . 4 . 3 . 3 2 . . 5 . . 5 . . . . 1 . . . . . Cannons 19 | . . . . . 6 . . . . . . . . . . . . . . . 2 1 . 1 . 7 . 2 . . . AOE 9 | . . . . . . . . . . . . 2 . . . . . . . . 3 4 . . . . . . . . . Classes Destroyed 28 | 1 6 1 . . 3 1 . 2 . 3 . . . 1 . 1 1 1 . . . 3 . . . 4 . . . . . Worker 17 | . 1 . . . . 3 . . 1 . . . 1 . . . 1 . . . 5 . . 2 2 . . 1 . . . Builder 15 | . . . . . . . . 3 1 . . . . 1 . . . . . . 3 . . 2 . 2 2 1 . . . Tunneler 7 | 1 . . . . . . . . 1 . . . . 1 . . . . . . 3 . . 1 . . . . . . . Hauler 11 | . 1 . . . 2 2 . . 1 . . . . . . . . . 1 . 1 . . 1 . . 1 1 . . . Recycler 16 | . . . . . 1 2 3 . 1 . . . 1 . . . . . . . 3 . . 1 1 . 1 . . 2 . Mechanic 1 | . . . . . . . . . . . . . . . . . . . . . . 1 . . . . . . . . . Operator 15 | . 2 . . . . 2 . . 1 . . . . . . 9 . . . . . 1 . . . . . . . . . Drone 4 | . . . . . . . . . . . . . . . . . . . . . . . . . . 4 . . . . . Watcher 9 | . 1 . . . . . . . 1 . 1 . . 2 . . 2 . . . . . . . . . 2 . . . . Swarmer 59 | . 11 3 . . 8 3 . . . 1 . 4 . 4 . . . 7 . . 3 . . . 1 4 4 2 . 4 . Cutter 3 | . . . . . . . . . . 1 . . . . . . . 2 . . . . . . . . . . . . . Saboteur 2 | . . . . . . . . . . 1 . . . . . . . . . . . . . . . 1 . . . . . Grunt 105 | . 3 2 . . 12 8 . . 6 2 . 2 1 1 . . 2 10 . . 14 16 . 3 . 13 . 7 . 3 . Brawler 7 | . . . . . 1 . . . . . . 1 . . . . . 1 . . 2 1 . . . 1 . . . . . Duelist 5 | . . . . . . . . . . . . . . 1 . . . . . . . 1 . . . 2 . . . 1 . Protector 2 | . . . . . . . . . . . . . . . . . . . . . . 1 . . . . . . . 1 . Researcher 1 | . . . . . . . . . . . . . . . . . . . . . . . . . . 1 . . . . . Sentry 43 | . . . . . 3 4 3 . 1 2 2 1 1 3 . . 3 1 . . 3 2 . . . 11 3 . . . . Specialist 4 | . . . . . . . . . . . . . . . . . . 1 . . . 1 . . . 2 . . . . . Hunter 9 | . . . . . . 1 . . . . . . . . . . 1 . . . . 2 . . . . 3 . . 2 . Programmer 55 | . . . . . . . . . . 1 1 2 . . . . . 2 . . 7 7 . . 6 7 11 9 . 2 . Heavy 1 | . . . . . . . . . . . . . . . . . . . . . . 1 . . . . . . . . . Behemoth 1 | . . . . . . . . . . . . . . . . . 1 . . . . . . . . . . . . . . Cetus Guard 2 | . . . . . . . . . . . . . . . 2 . . . . . . . . . . . . . . . . S7 Guard 1 | . . . . . . . . . . . . . . . . . . . . . . . . . . . . 1 . . . M Guard 2 | . . . . . . . . . . . . . . . . . . . . . . . . . . . . . . 2 . Enhanced Grunt 7 | . . . . . . . . . . . . . . . . . . . . . . . . . . . . . . . 7 Enhanced Sentry 2 | . . . . . . . . . . . . . . . . . . . . . . . . . . . . . . . 2 Enhanced Hunter 2 | . . . . . . . . . . . . . . . . . . . . . . . . . . . . . . . 2 CL-0N3 Special 2 | . . . . . . . . . . . . . . . . . . . . . . . . . . . 1 1 . . . Hotshot 5 | . . . . . . . . . . . . . . . . . . . . . . . . . . 5 . . . . . Decapitator 11 | . . . . . . . . . . . . . . . . . . . . . . . . . . 11 . . . . . Immortal 6 | . . . . . . . . . . . . . . . . . . . . . . . . . . 6 . . . . . Combat Programmer 2 | . . . . . . . . . . . . . . . . . . . . . . . . . . . . . . 2 . Executioner 1 | . . . . . . . . . . . . . . . . 1 . . . . . . . . . . . . . . . Alpha 7 2 | . . . . . . . . . . . . . . . . . . . . . . . . . . 2 . . . . . V-Series 2 | . . . . . . . . . . . . . . . . . . . . . . . . . . 2 . . . . . Scientist 1 | . . . . . . . . 1 . . . . . . . . . . . . . . . . . . . . . . . Assembled 10 | . . 10 . . . . . . . . . . . . . . . . . . . . . . . . . . . . . Guerrilla 1 | . . . . . . . . . . . . . . . 1 . . . . . . . . . . . . . . . . Best Kill Streak 11 | 1 6 3 . . 6 4 2 . 5 4 2 2 1 4 2 4 2 6 1 . 11 6 . 4 6 8 10 7 . 5 3 Combat Bots Only 10 | . 3 3 . . 4 4 1 . 4 4 2 2 1 4 2 . 2 6 . . 6 6 . 1 5 8 10 7 . 5 3 Max Kills in Single Turn 5 | 1 2 2 . . 3 2 1 1 1 1 1 2 1 1 1 1 1 1 1 . 5 3 . 1 1 2 2 1 . 1 1 Gunslinging 1 | . 1 1 . . 1 . . . . . . . . . . . . . . . . . . . . . . . . . . Exploded 3 | . . . . . . . . . . . . 2 . . . . . . . . 3 3 . . . . . . . . . Melee 2 | . . . . . 1 . 1 . 1 1 1 1 1 1 . . 1 1 . . 2 2 . 1 1 2 2 1 . 1 1 Uniques/NPCs Destroyed 12 | . . . . . . . 1 . . . . . . . 1 . . . . . . . . . . . . 1 . 2 7 01-MTF (-8/Recycling) A7 (-5/Cetus) CL-0N3 (-2/Testing) MAIN.C Shell (-1/Command) MAIN.C (-1/Command) A8 (-1/Access_0) A6 (-1/Access_0) A5 (-1/Access_0) A2 (-1/Access_0) Architect (-1/Access_0) A4 (-1/Access_0) A3 (-1/Access_0) Combat | -11 -10 -10 -10 -9 -8 -8 -8 -8 -6 -6 -6 -6 -5 -5 -5 -5 -5 -5 -4 -4 -4 -4 -4 -3 -3 -3 -2 -2 -1 -1 -1 -------- Run | Yrd Mat Min Exi Min Mat Sto Rec Scr Fac Gar Fac Gar Fac Ext Cet Arc Hub Gar Fac Was Fac Arm Lab Res Qua Frg Res Tes Acc Com Ac0 Hostile Shots Fired 2302 | . 40 69 . . 199 80 2 38 83 36 26 91 15 41 8 . 36 75 . . 155 240 . 22 28 406 77 73 . 99 363 Missed 847 | . 11 15 . . 44 25 1 8 32 12 12 31 4 8 3 . 13 11 . . 43 74 . 4 5 126 28 30 . 46 261 Intercepted 5 | . . . . . . . . . . . . . . . . . . . . . . . . . . . . . . 5 . Deflected 49 | . . . . . . . . . . . . . . . . . . 2 . . 5 9 . 1 6 11 4 6 . 2 3 Hits 1455 | . 29 54 . . 155 55 1 30 51 24 14 60 11 33 5 . 23 64 . . 112 166 . 18 23 280 49 43 . 53 102 Melee 107 | . . 3 . . 1 . . . . 1 . . . . . . . 1 . . 1 3 . . . 91 . . . 1 5 Projectile 1348 | . 29 51 . . 154 55 1 30 51 23 14 60 11 33 5 . 23 63 . . 111 163 . 18 23 189 49 43 . 52 97 AOE 13 | . . 8 . . . . . . 1 . . . . . . . . . . . . 1 . . . . . 2 . . 1 Critical Strikes 127 | . 1 2 . . 6 5 . . . . 1 2 . 2 1 . . 3 . . 5 13 . 3 3 67 1 3 . 3 6 Actively Blocked 88 | . . . . . . . . . . . . . . . . . . . . . . 11 . 3 . 67 1 2 . 3 1 Part Disruptions 6 | . . 1 . . . . . . . . . . . . . . . . . . . 1 . . . 1 . . . 2 1 Actively Blocked 1 | . . . . . . . . . . . . . . . . . . . . . . . . . . . . . . 1 . Damage Taken 30744 | . 242 1044 . . 2318 935 18 764 680 324 194 999 430 637 184 39 389 1281 45 . 2185 3902 . 444 410 9161 656 655 . 919 1889 Core 3610 | . 36 186 . . 331 63 . 117 58 37 . 69 . 80 . 10 42 158 . . 295 328 . 54 11 1125 136 86 . 92 296 Absorbed by Shields 4088 | . . . . . 35 . . . . . . . . 191 . . 12 12 . . . . . . . 170 572 591 . 846 1659 Redirected to Shielding 530 | . . . . . . . . . . . . . . . . . . . . . 110 . . . . 248 13 85 . . 74 Ignored by Resistances 189 | . . . . . . . . . . . . . . . . . . . . . . . . . . 189 . . . . . Regen/Repaired (Parts) 4661 | . . . . . . . . 10 . . 24 . . . . . . . . . 1241 1067 . 97 333 191 369 212 117 584 416 Core Remaining (%) 51 | 100 . . . 11 . . . 7 . . . 80 . . . . . 71 . . . . 45 . . 8 . 84 . . 61 Volleys Fired 463 | 1 30 41 . . 60 60 1 . 11 11 8 30 14 22 11 1 6 28 5 8 40 19 . 5 11 15 3 8 2 4 8 Largest 2 | 2 2 2 . . 2 2 2 . 1 1 1 1 1 1 1 1 1 1 1 1 1 1 . 1 1 1 1 1 1 1 1 Hottest 140 | 90 70 46 . . 130 130 122 . 120 120 120 120 5 120 38 35 35 120 120 7 120 20 . 10 120 120 140 140 140 140 140 Shots Fired 651 | 2 60 82 . . 118 118 2 . 11 11 8 30 14 22 11 2 6 28 5 8 38 19 . 5 11 15 3 8 2 4 8 Gun 472 | 2 60 82 . . 73 118 2 . 10 11 3 21 . 20 11 2 5 28 2 . 22 . . . . . . . . . . Cannon 75 | . . . . . 45 . . . 1 . . . . . . . . . . . . . . . 3 9 1 5 2 1 8 Launcher 9 | . . . . . . . . . . . . 2 . . . . . . . . 2 5 . . . . . . . . . Special 95 | . . . . . . . . . . . 5 7 14 2 . . 1 . 3 8 14 14 . 5 8 6 2 3 . 3 . Kinetic 213 | . 51 82 . . 50 . . . 1 . . . . 11 11 2 5 . . . . . . . . . . . . . . Thermal 323 | 2 9 . . . 68 118 2 . 10 11 3 21 . 9 . . . 28 2 . 22 . . . 3 2 1 5 2 1 4 Explosive 9 | . . . . . . . . . . . . 2 . . . . . . . . 2 5 . . . . . . . . . Electromagnetic 11 | . . . . . . . . . . . . . . . . . . . . . . . . . . 7 . . . . 4 Robot Hit Streak 18 | 1 7 14 . . 18 11 4 . 5 6 17 11 7 10 8 5 1 10 3 5 10 7 . 8 9 13 7 8 . . 10 Robot Miss Streak 9 | . 3 6 . . 7 6 . . 4 9 2 6 4 2 2 1 2 6 5 1 3 1 . . . 1 . . . . 1 Penetration Max 2 | . . . . . 1 . . . . 1 . . . 1 1 . . 1 . . 2 . . . . . . . . . . Secondary Targets 8 | . 2 2 . . 2 2 . . . . . . . . . . . . . . . . . . . . . . . . . Max Gunslinging Chain 1 | . 1 1 . . 1 1 . . . . . . . . . . . . . . . . . . . . . . . . . Autonomous 57 | . . . . . . . . . . . . . . . . . 1 3 . . 4 10 . 1 . 15 3 4 . 3 13 Shots Hit Robots 1441 | 1 37 53 . . 95 85 10 6 36 36 8 47 20 41 9 19 25 63 7 6 69 84 . 27 22 238 64 56 . 94 183 Core Hits 829 | 1 22 26 . . 108 53 7 1 23 23 6 27 3 23 6 8 7 53 2 . 88 44 . 9 10 111 31 21 . 36 80 Critical Kills 2 | . 1 . . . . . . . . . . . . . 1 . . . . . . . . . . . . . . . . Critical Parts Destroyed 2 | . . . . . . . . 1 . . . . . 1 . . . . . . . . . . . . . . . . . Critical Strikes 78 | . 2 . . . 6 8 2 1 . . . 2 2 1 1 . . 4 2 . . 8 . . . 13 2 6 . 2 16 Burn 11 | . 1 . . . . 8 2 . . . . . . . . . . . . . . . . . . . . . . . . Destroy 3 | . 1 . . . . . . . . . . . . 1 1 . . . . . . . . . . . . . . . . Blast 6 | . . . . . 6 . . . . . . . . . . . . . . . . . . . . . . . . . . Smash 1 | . . . . . . . . 1 . . . . . . . . . . . . . . . . . . . . . . . Impale 1 | . . . . . . . . . . . . . . . . . . . . . . . . . . 1 . . . . . Melee Attacks 1464 | . . . . . 4 8 10 8 42 32 16 46 14 29 1 19 37 79 11 . 82 102 26 34 42 323 97 78 4 125 195 Impact 3 | . . . . . . . . 3 . . . . . . . . . . . . . . . . . . . . . . . Slashing 1457 | . . . . . 4 8 10 5 42 32 16 46 14 29 1 19 37 79 11 . 82 102 26 34 42 321 97 76 4 125 195 Piercing 4 | . . . . . . . . . . . . . . . . . . . . . . . . . . 2 . 2 . . . Sneak Attacks 115 | . . . . . . 2 7 4 5 1 . 1 3 5 1 12 6 1 1 . 9 5 . 8 4 17 7 8 . 4 4 Combat Hostiles 15 | . . . . . . . . . . . . . . . . . 3 1 . . . 1 . . 1 2 2 4 . 1 . Follow-up Attacks 37 | . . . . . . . . . . . . 3 . 1 . . 1 1 . . 4 2 . . . 13 3 2 . 1 6 Martial Strikes 68 | . . . . . . . . . . . . . . . . . . . . . . . . . . 68 . . . . . Damage Inflicted 96136 | 18 569 781 . . 1935 1751 518 329 1701 2014 308 1940 591 1791 349 1724 1690 4369 162 . 5944 5917 . 1904 1573 18831 5717 5840 . 11956 15914 Guns 8491 | 12 556 781 . . 985 1558 18 . 278 336 166 711 . 555 291 24 52 944 23 . 1201 . . . . . . . . . . Cannons 5922 | . . . . . 844 . . . . . . . . . . . 99 269 . . 307 855 . 70 . 1398 266 378 . 245 1191 Explosions 2060 | . . . . . . . . . . . . 184 . . . . . . . . 963 913 . . . . . . . . . Melee 79640 | . . . . . 105 190 500 329 1423 1678 142 1045 591 1236 58 1700 1539 3156 139 . 3473 4149 . 1834 1573 17433 5451 5462 . 11711 14723 Ramming 23 | 6 13 . . . 1 3 . . . . . . . . . . . . . . . . . . . . . . . . . Kinetic 2781 | . 482 781 . . 925 . . . . . . . . 226 291 24 52 . . . . . . . . . . . . . . Thermal 6554 | 12 74 . . . 904 1558 18 . 278 336 166 711 . 329 . . . 944 23 . 1201 . . . . . . . . . . Explosive 2060 | . . . . . . . . . . . . 184 . . . . . . . . 963 913 . . . . . . . . . Electromagnetic 248 | . . . . . . . . . . . . . . . . . . . . . . . . . . 146 . . . . 102 Impact 166 | . . . . . . . . 166 . . . . . . . . . . . . . . . . . . . . . . . Slashing 79417 | . . . . . 105 190 500 163 1423 1678 142 1045 591 1236 58 1700 1539 3156 139 . 3473 4149 . 1834 1573 17376 5451 5462 . 11711 14723 Piercing 57 | . . . . . . . . . . . . . . . . . . . . . . . . . . 57 . . . . . Phasic 4830 | . . . . . . . . . . . . . . . . . 99 269 . . 307 855 . 70 . 1252 266 378 . 245 1089 Highest Corruption 34 | . . . . . . . . . . . . . 2 3 3 3 . 9 . 16 22 34 34 . 4 19 5 10 . 2 2 Average Corruption 11 | . . . . . . . . . . . . . 2 2 3 2 . 4 . 12 18 30 34 . 3 9 3 8 . 1 1 Corruption Purged 5 | . . . . . . . . . . . . . . . . 3 . . . . . . . . . . . . . 2 . Corruption Blocked . | . . . . . . . . . . . . . . . . . . . . . . . . . . . . . . . . Effects 432 | . . . . . . . . . . . . . 3 19 4 5 . 13 . 7 94 96 18 . 17 88 6 36 . 9 17 Message Errors 109 | . . . . . . . . . . . . . 1 7 1 1 . . . 1 28 22 6 . 7 16 2 9 . 3 5 Matter Fused 116 | . . . . . . . . . . . . . 1 4 2 . . 5 . 2 20 25 3 . 4 25 1 16 . 4 4 Heat Flow Errors 53 | . . . . . . . . . . . . . 1 1 . . . 1 . . 15 13 3 . 3 10 2 2 . . 2 Energy Discharges 63 | . . . . . . . . . . . . . . 2 . 1 . 3 . 2 12 18 1 . . 17 . 3 . 1 3 Parts Rejected 7 | . . . . . . . . . . . . . . 1 . . . 1 . . 1 2 . . . 2 . . . . . Parts Fused 5 | . . . . . . . . . . . . . . . . 1 . . . . 1 1 . . . 1 . 1 . . . Data Loss (minor) 39 | . . . . . . . . . . . . . . 3 1 1 . 1 . . 7 8 3 . 1 9 . 3 . 1 1 Data Loss (major) 18 | . . . . . . . . . . . . . . . . . . 2 . 1 3 4 . . 1 4 . 1 . . 2 Misfires 1 | . . . . . . . . . . . . . . . . 1 . . . . . . . . . . . . . . . Alerts 10 | . . . . . . . . . . . . . . 1 . . . . . . 2 1 2 . 1 2 1 . . . . Misdirections 9 | . . . . . . . . . . . . . . . . . . . . 1 3 2 . . . 2 . 1 . . . Weapon Failures 2 | . . . . . . . . . . . . . . . . . . . . . 2 . . . . . . . . . . Overload Shots . | . . . . . . . . . . . . . . . . . . . . . . . . . . . . . . . . Overflow Damage 8216 | . . . . . . 12 35 119 76 9 . 63 62 239 . 415 202 309 . . 655 446 . 445 196 962 674 989 . 1762 546 Projectiles 297 | . . . . . . . . . . . . . . . . . 64 29 . . 5 100 . . . . 25 . . . 74 Explosions 62 | . . . . . . . . . . . . . . . . . . . . . 59 3 . . . . . . . . . Melee 7857 | . . . . . . 12 35 119 76 9 . 63 62 239 . 415 138 280 . . 591 343 . 445 196 962 649 989 . 1762 472 Knockbacks 10 | . . . . . 8 . . 2 . . . . . . . . . . . . . . . . . . . . . . . Impact 1 | . . . . . . . . 1 . . . . . . . . . . . . . . . . . . . . . . . Kinetic 6 | . . . . . 6 . . . . . . . . . . . . . . . . . . . . . . . . . . Secondary 3 | . . . . . 2 . . 1 . . . . . . . . . . . . . . . . . . . . . . . Self-Inflicted Damage 86 | . . . . . . . . . . . . . . . . . . . . . . 86 . . . . . . . . . Shots 2 | . . . . . . . . . . . . . . . . . . . . . . 2 . . . . . . . . . Rammed 4 | 1 2 . . . 1 . . . . . . . . . . . . . . . . . . . . . . . . . . Targets Rammed 7 | 1 2 . . . 1 3 . . . . . . . . . . . . . . . . . . . . . . . . . Kicked 3 | . . . . . . 3 . . . . . . . . . . . . . . . . . . . . . . . . . Crushed . | . . . . . . . . . . . . . . . . . . . . . . . . . . . . . . . . Highest Temperature 302 | 30 36 20 . . 246 144 18 . 174 237 168 124 118 184 . . . 237 92 . 253 278 135 . 133 222 264 302 . 54 239 Average Temperature 58 | 18 15 8 . . 71 31 12 . 74 106 84 25 65 39 . . . 75 48 . 92 113 59 . 73 86 14 64 . 13 76 Received Heat Transfer 4695 | . 30 165 . . 1095 444 . 108 261 66 6 183 54 131 . 9 45 255 9 . 479 498 . 90 . 645 . 24 . 52 46 Effects 6 | . . . . . . . . . . . . . . . . . . 1 . . . 2 . . . . . 3 . . . Interference 5 | . . . . . . . . . . . . . . . . . . 1 . . . 2 . . . . . 2 . . . Short Circuit 1 | . . . . . . . . . . . . . . . . . . . . . . . . . . . . 1 . . . Siege Activations . | . . . . . . . . . . . . . . . . . . . . . . . . . . . . . . . . Martial Activations . | . . . . . . . . . . . . . . . . . . . . . . . . . . . . . . . . Shielding Activations 1 | . . . . . . . . . . . . . . . . . . . . . . . . . 1 . . . . . . Total Turns 14 | . . . . . . . . . . . . . . . . . . . . . . . . . 14 . . . . . . Longest Duration 14 | . . . . . . . . . . . . . . . . . . . . . . . . . 14 . . . . . . Robots Disrupted 10 | . . . . . . . . . . . . . . . . . . . . . . . . . . 4 1 . . . 5 Combat Hostiles 9 | . . . . . . . . . . . . . . . . . . . . . . . . . . 4 . . . . 5 Robots Corrupted 4 | . . . . . . . . 3 . . . . . . . . . . . . . . . . . . . . . . 1 Combat Hostiles 1 | . . . . . . . . . . . . . . . . . . . . . . . . . . . . . . . 1 Parts Fried 6 | . . . . . . . . 3 . . . . . . . . . . . . . . . . . . . . . . 3 Impact Corruptions 9 | . . . . . . . . 9 . . . . . . . . . . . . . . . . . . . . . . . Robots Melted 4 | . . . . . . . 1 . . . 1 . . 1 . . . 1 . . . . . . . . . . . . . Combat Hostiles 3 | . . . . . . . 1 . . . 1 . . 1 . . . . . . . . . . . . . . . . . Parts Melted 37 | . 1 . . . . 10 4 . . 3 3 3 . 3 . . . 3 . . 6 . . 1 . . . . . . . Heat Transferred 13728 | 37 296 . . . 1167 3185 222 . 650 750 375 1471 . 750 . . . 2125 50 . 2650 . . . . . . . . . . Parts Sabotaged 9 | . . . . . . . . . . 1 . . . . . . . . . . 3 4 . . . 1 . . . . . Parts Stolen . | . . . . . . . . . . . . . . . . . . . . . . . . . . . . . . . . Parts Stripped 203 | . . . . . . . . . . . . . . . . . 5 . . . . 50 . . . 34 19 . . 30 65 Power Chain Reactions . | . . . . . . . . . . . . . . . . . . . . . . . . . . . . . . . . Alert | -11 -10 -10 -10 -9 -8 -8 -8 -8 -6 -6 -6 -6 -5 -5 -5 -5 -5 -5 -4 -4 -4 -4 -4 -3 -3 -3 -2 -2 -1 -1 -1 ------- Run | Yrd Mat Min Exi Min Mat Sto Rec Scr Fac Gar Fac Gar Fac Ext Cet Arc Hub Gar Fac Was Fac Arm Lab Res Qua Frg Res Tes Acc Com Ac0 Maximum Alert Level 4 | . . . . . 1 1 . . . 2 1 4 2 4 3 1 2 4 2 . 2 3 . . . 4 3 3 2 2 . Low Security (%) 43 | 100 100 100 . 100 81 82 100 . 100 34 82 15 . . . 54 21 . 37 100 65 1 . 100 100 11 . . . . . Level 1 13 | . . . . . 18 18 . . . 19 17 21 35 42 . 45 22 . 37 . 2 22 . . . 4 26 . . 18 . Level 2 25 | . . . . . . . . . . 46 . 18 64 31 61 . 56 18 25 . 31 32 . . . 28 26 71 100 81 . Level 3 11 | . . . . . . . . . . . . 27 . 14 38 . . 49 . . . 43 . . . 25 47 28 . . . Level 4 5 | . . . . . . . . . . . . 16 . 12 . . . 31 . . . . . . . 31 . . . . . Level 5 . | . . . . . . . . . . . . . . . . . . . . . . . . . . . . . . . . High Security . | . . . . . . . . . . . . . . . . . . . . . . . . . . . . . . . . Max Security . | . . . . . . . . . . . . . . . . . . . . . . . . . . . . . . . . Peak Influence 1541 | 5 199 96 . . 289 272 80 . 67 494 270 1313 689 1228 774 359 699 1231 653 43 499 1042 . 44 150 1541 886 868 550 528 . Initial 847 | . . 46 . . . 106 39 . . . 259 11 688 251 676 277 . 421 646 43 . 226 . . . 31 847 461 511 268 . Average 369 | . 84 13 . . 87 170 14 . 14 328 110 608 495 562 677 178 436 954 310 13 206 650 . 5 26 850 615 628 477 385 . Influence Increases 18451 | 5 456 120 . . 656 601 275 . 336 654 185 1422 395 1661 378 252 1234 820 112 . 1100 2176 . 148 414 2506 775 850 68 634 218 Destroy 0b10 Robot/C 9440 | . 280 100 . . 480 340 80 . 140 340 60 700 140 740 160 80 500 480 20 . 580 1120 . 60 180 1720 420 360 . 360 . Destroy 0b10 Robot/NC 560 | 5 25 . . . 15 45 15 . 35 15 5 . 15 35 10 45 30 5 10 . 75 15 . 40 20 20 40 15 . 25 . Destroy Leader 1474 | . 44 20 . . 94 94 . . 24 50 32 30 40 86 . . 156 30 14 . 112 230 . 14 40 152 110 62 . 40 . Allied During Kill 2355 | . . . . . . 36 40 . . 29 . 171 109 669 170 125 361 . 4 . . 500 . . 13 123 . . . 5 . Successful Hack 644 | . 44 . . . 23 7 18 . 63 . 60 26 . 19 . . 17 . 21 . 34 50 . 20 35 10 64 89 44 . . Select Force Hacks 120 | . . . . . . . 120 . . . . . . . . . . . . . . . . . . . . . . . . Disable Machine 945 | . . . . . 15 60 . . 15 15 . 15 45 . . . 60 15 15 . 15 105 . . 45 240 15 90 . 45 135 Anti-Garrison Action 650 | . . . . . . . . . . 200 . 300 . . . . . 150 . . . . . . . . . . . . . Destroy Structure 1303 | . 3 . . . 14 4 2 . 14 5 13 45 46 82 38 2 110 65 28 . 224 156 . 14 36 76 96 69 24 69 68 Partial Spotted 60 | . . . . . . . . . . . . . . . . . . . . . 15 . . . . . 15 . . 15 15 Lose Combat Pursuer 900 | . 60 . . . 15 15 . . 45 . 15 135 . 30 . . . 75 . . 45 . . . 45 165 15 165 . 75 . Influence Decreases 18353 | 5 335 201 40 . 403 751 378 . 336 160 663 125 1194 967 892 946 632 191 1218 125 637 1671 968 146 360 1055 1462 817 502 391 782 Entered New Map 6657 | . . 75 40 . . 147 64 . . . 235 5 625 263 532 417 . 181 585 82 . 237 968 . 2 25 660 359 342 151 662 Time Decay 7810 | 5 335 126 . . 337 474 314 . 287 . 428 . 294 514 230 469 442 . 238 43 437 589 . 136 232 690 342 458 160 230 . Lost Part 798 | . . . . . 66 30 . . 42 . . 30 . 10 10 . 10 10 . . 80 190 . 10 . 260 . . . 10 40 Lost Ally 1487 | . . . . . . 100 . . 7 160 . 90 . 180 120 60 180 . 20 . 120 280 . . . 80 10 . . . 80 Purge Threat 1601 | . . . . . . . . . . . . . 275 . . . . . 375 . . 375 . . 126 . 450 . . . . Squads Dispatched 88 | . 1 . . . 1 2 . . 6 . 4 . 3 5 . . 7 . 2 . 12 10 . 1 3 15 5 7 1 3 . Investigation 7 | . . . . . . . . . 1 . . . . 3 . . . . . . . . . . . 1 . 2 . . . Extermination 32 | . . . . . . . . . 2 . 1 . 1 . . . 2 . 1 . 5 5 . . 3 5 3 3 . 1 . Reinforcement 30 | . 1 . . . 1 2 . . 3 . 3 . 2 2 . . 2 . 1 . 2 3 . 1 . 3 2 1 1 . . Assault 13 | . . . . . . . . . . . . . . . . . . . . . 2 2 . . . 6 . 1 . 2 . Garrison 6 | . . . . . . . . . . . . . . . . . 3 . . . 3 . . . . . . . . . . Intercept . | . . . . . . . . . . . . . . . . . . . . . . . . . . . . . . . . Searches Triggered . | . . . . . . . . . . . . . . . . . . . . . . . . . . . . . . . . Unchained Authorized 2 | . . . . . . . . . . . . . . . . . . . . . . . . . . . 1 1 . . . Construction Impeded 3 | . . . . . . . . . . . . . 1 1 . . . . . . 1 . . . . . . . . . . Haulers Reinforced 2 | . . . . . . . . . . . . . . . . . . . . . 1 . . . . . 1 . . . . Active Scanning Responses . | . . . . . . . . . . . . . . . . . . . . . . . . . . . . . . . . Cargo Convoy Interrupts . | . . . . . . . . . . . . . . . . . . . . . . . . . . . . . . . . Stealth | -11 -10 -10 -10 -9 -8 -8 -8 -8 -6 -6 -6 -6 -5 -5 -5 -5 -5 -5 -4 -4 -4 -4 -4 -3 -3 -3 -2 -2 -1 -1 -1 --------- Run | Yrd Mat Min Exi Min Mat Sto Rec Scr Fac Gar Fac Gar Fac Ext Cet Arc Hub Gar Fac Was Fac Arm Lab Res Qua Frg Res Tes Acc Com Ac0 Distress Signals 39 | . 2 . . . 2 5 . . 1 . 1 . . 3 2 . 3 . . . 1 . . 2 . 2 3 . . 12 . Communications Jammed 17 | . . . . . . . . . . . . . . . . . . . 17 . . . . . . . . . . . . Distress Signals 17 | . . . . . . . . . . . . . . . . . . . 17 . . . . . . . . . . . . Times Spotted 690 | . 25 19 . . 30 27 3 10 19 21 7 43 8 44 8 9 14 22 4 6 45 59 . 7 12 97 29 32 . 27 63 Peak Tracking Total 15 | . 5 3 . . 7 4 1 7 5 7 2 9 2 7 5 1 3 6 1 3 6 5 . 3 4 9 9 15 . 7 4 Tactical Retreats 33 | . 3 2 . . 1 1 . . 2 . 1 5 . 1 . . . 2 . . 3 . . . 2 4 1 3 . 2 . Traps | -11 -10 -10 -10 -9 -8 -8 -8 -8 -6 -6 -6 -6 -5 -5 -5 -5 -5 -5 -4 -4 -4 -4 -4 -3 -3 -3 -2 -2 -1 -1 -1 ------- Run | Yrd Mat Min Exi Min Mat Sto Rec Scr Fac Gar Fac Gar Fac Ext Cet Arc Hub Gar Fac Was Fac Arm Lab Res Qua Frg Res Tes Acc Com Ac0 Traps Triggered 41 | . . . . . . 2 . . . 3 . 5 1 2 . . . 3 1 . 1 3 . . 2 13 . 1 1 3 . Indirectly . | . . . . . . . . . . . . . . . . . . . . . . . . . . . . . . . . Trap Hack Attempts . | . . . . . . . . . . . . . . . . . . . . . . . . . . . . . . . . Triggered . | . . . . . . . . . . . . . . . . . . . . . . . . . . . . . . . . Disarmed . | . . . . . . . . . . . . . . . . . . . . . . . . . . . . . . . . Reprogrammed . | . . . . . . . . . . . . . . . . . . . . . . . . . . . . . . . . Reused . | . . . . . . . . . . . . . . . . . . . . . . . . . . . . . . . . Traps Extracted . | . . . . . . . . . . . . . . . . . . . . . . . . . . . . . . . . Installed . | . . . . . . . . . . . . . . . . . . . . . . . . . . . . . . . . Triggered . | . . . . . . . . . . . . . . . . . . . . . . . . . . . . . . . . Machines | -11 -10 -10 -10 -9 -8 -8 -8 -8 -6 -6 -6 -6 -5 -5 -5 -5 -5 -5 -4 -4 -4 -4 -4 -3 -3 -3 -2 -2 -1 -1 -1 ---------- Run | Yrd Mat Min Exi Min Mat Sto Rec Scr Fac Gar Fac Gar Fac Ext Cet Arc Hub Gar Fac Was Fac Arm Lab Res Qua Frg Res Tes Acc Com Ac0 Machines Disabled 82 | . . . . . 1 4 . . 1 4 . 5 3 2 . . 4 4 1 . 3 7 2 . 3 19 1 6 . 3 9 Max in Single Turn 1 | . . . . . 1 1 . . 1 1 . 1 1 . . . 1 1 . . 1 1 1 . 1 1 1 1 . 1 1 Garrison Access 9 | . . . . . . . . . . . . . . . . . 1 . . . 2 . . 1 . 1 1 1 2 . . Garrison Relay 10 | . . . . . . . . . . 3 . 4 . . . . . 3 . . . . . . . . . . . . . Network Hub 1 | . . . . . . . . . . . . . . . . . 1 . . . . . . . . . . . . . . Machines Repaired . | . . . . . . . . . . . . . . . . . . . . . . . . . . . . . . . . Machines Dismantled 1 | . . . . . . . . . . . . . . . . . 1 . . . . . . . . . . . . . . Machines Sabotaged . | . . . . . . . . . . . . . . . . . . . . . . . . . . . . . . . . Overloaded Fab Kills . | . . . . . . . . . . . . . . . . . . . . . . . . . . . . . . . . Hacking | -11 -10 -10 -10 -9 -8 -8 -8 -8 -6 -6 -6 -6 -5 -5 -5 -5 -5 -5 -4 -4 -4 -4 -4 -3 -3 -3 -2 -2 -1 -1 -1 --------- Run | Yrd Mat Min Exi Min Mat Sto Rec Scr Fac Gar Fac Gar Fac Ext Cet Arc Hub Gar Fac Was Fac Arm Lab Res Qua Frg Res Tes Acc Com Ac0 Machines Accessed 128 | . 5 . 1 . 1 5 10 4 8 2 7 2 3 9 . . 10 1 2 . 8 10 . 3 7 3 10 7 8 2 . Terminals 84 | . 5 . . . 1 5 6 . 3 2 5 2 2 9 . . 8 1 1 . 1 6 . 1 5 2 7 5 5 2 . Fabricators 9 | . . . . . . . . . 2 . . . 1 . . . . . 1 . 2 2 . . . . 1 . . . . Repair Stations 10 | . . . . . . . . . 1 . 1 . . . . . . . . . 2 2 . . 1 . 1 1 1 . . Recycling Units 4 | . . . . . . . 4 . . . . . . . . . . . . . . . . . . . . . . . . Scanalyzers 4 | . . . . . . . . . 1 . . . . . . . . . . . 1 . . 1 1 . . . . . . Garrison Access 12 | . . . . . . . . . 1 . 1 . . . . . 2 . . . 2 . . 1 . 1 1 1 2 . . Total Hacks 324 | . 10 . 1 . 6 9 23 28 26 4 16 4 4 23 . . 14 8 3 . 26 20 . 14 23 5 27 15 13 2 . Successful 173 | . 5 . 1 . 5 2 13 28 19 . 11 3 1 5 . . 6 1 2 . 15 9 . 8 9 4 12 6 7 1 . Failed 150 | . 5 . . . 1 7 10 . 7 4 5 1 3 18 . . 8 7 1 . 10 11 . 6 14 1 15 9 6 1 . Catastrophic 35 | . . . . . 1 3 . . . 1 2 . . 4 . . 3 1 . . 1 5 . . 4 1 3 2 3 1 . Database Lockouts 1 | . . . . . . . . . . . . . . . . . . . . . 1 . . . . . . . . . . Manual 121 | . 9 . . . 6 4 22 . 7 . 6 2 3 7 1 . 11 7 2 . 3 8 . 1 3 2 9 5 3 . . Terminals 204 | . 10 . . . 6 9 19 . 13 4 12 4 3 23 . . 12 8 2 . 3 13 . 4 14 4 22 11 6 2 . Fabricators 15 | . . . . . . . . . 3 . . . 1 . . . . . 1 . 5 3 . . . . 2 . . . . Repair Stations 38 | . . . . . . . . . 2 . 2 . . . . . . . . . 14 4 . . 6 . 2 3 5 . . Recycling Units 4 | . . . . . . . 4 . . . . . . . . . . . . . . . . . . . . . . . . Scanalyzers 20 | . . . . . . . . . 6 . . . . . . . . . . . 2 . . 9 3 . . . . . . Garrison Access 14 | . . . . . . . . . 2 . 2 . . . . . 2 . . . 2 . . 1 . 1 1 1 2 . . Terminal Hacks 81 | . 3 . 1 . 3 2 2 28 6 . 4 2 . 5 . . 3 1 . . . 2 . 2 4 2 5 2 3 1 . Record 27 | . . . 1 . . . . 26 . . . . . . . . . . . . . . . . . . . . . . . Part Schematic 1 | . . . . . . . . . . . . . . . . . . . . . . . . 1 . . . . . . . Robot Analysis 3 | . 2 . . . 1 . . . . . . . . . . . . . . . . . . . . . . . . . . Prototype ID Bank 6 | . 1 . . . . . 1 . 2 . 1 . . . . . 1 . . . . . . . . . . . . . . Open Door 11 | . . . . . . 2 . 1 . . . . . 3 . . . . . . . 1 . . . . . . 3 1 . Open DSF 1 | . . . . . . . . . . . . . . . . . . . . . . . . . . . 1 . . . . Level Access Points 1 | . . . . . . . . . . . . . . . . . . . . . . . . . . . . 1 . . . Branch Access Points 1 | . . . . . . . . . . . . . . . . . . . . . . . . . . . 1 . . . . Emergency Access Points 2 | . . . . . . . . . . . . 1 . . . . . 1 . . . . . . . . . . . . . Machine Index 1 | . . . . . . . . . . . . . . . . . . . . . . . . . 1 . . . . . . Terminal Index 4 | . . . . . 1 . 1 . . . . . . . . . . . . . . . . . 1 . . 1 . . . Unreport Threat 4 | . . . . . . . . . . . . . . . . . . . . . . . . . 1 . 3 . . . . Locate Traps 6 | . . . . . 1 . . . 2 . 2 . . . . . . . . . . 1 . . . . . . . . . Recall Investigation 1 | . . . . . . . . . . . . . . 1 . . . . . . . . . . . . . . . . . Recall Extermination 1 | . . . . . . . . . 1 . . . . . . . . . . . . . . . . . . . . . . Hauler Manifests 3 | . . . . . . . . . 1 . . . . 1 . . . . . . . . . . 1 . . . . . . Registered Components 2 | . . . . . . . . . . . 1 . . . . . . . . . . . . 1 . . . . . . . Zone Layout 3 | . . . . . . . . . . . . . . . . . 2 . . . . . . . . 1 . . . . . Security Stations 1 | . . . . . . . . . . . . 1 . . . . . . . . . . . . . . . . . . . Proto ID Catalog 2 | . . . . . . . . 1 . . . . . . . . . . . . . . . . . 1 . . . . . Fabricator Hacks 7 | . . . . . . . . . 2 . . . 1 . . . . . 1 . 1 1 . . . . 1 . . . . Network Status 6 | . . . . . . . . . 2 . . . 1 . . . . . 1 . . 1 . . . . 1 . . . . Build 1 | . . . . . . . . . . . . . . . . . . . . . 1 . . . . . . . . . . Repair Station Hacks 25 | . . . . . . . . . 2 . 2 . . . . . . . . . 9 4 . . 2 . 2 2 2 . . Scan Component 13 | . . . . . . . . . 1 . 1 . . . . . . . . . 5 2 . . 1 . 1 1 1 . . Repair 12 | . . . . . . . . . 1 . 1 . . . . . . . . . 4 2 . . 1 . 1 1 1 . . Recycling Unit Hacks . | . . . . . . . . . . . . . . . . . . . . . . . . . . . . . . . . Scanalyzer 13 | . . . . . . . . . 4 . . . . . . . . . . . 1 . . 5 3 . . . . . . Insert Component 3 | . . . . . . . . . 2 . . . . . . . . . . . . . . . 1 . . . . . . Analyze 1 | . . . . . . . . . 1 . . . . . . . . . . . . . . . . . . . . . . Retrieve Study 9 | . . . . . . . . . 1 . . . . . . . . . . . 1 . . 5 2 . . . . . . Garrison Access Hacks 13 | . . . . . . . . . 1 . 2 . . . . . 2 . . . 2 . . 1 . 1 1 1 2 . . Unlock Access 3 | . . . . . . . . . 1 . 1 . . . . . 1 . . . . . . . . . . . . . . Seal Access 9 | . . . . . . . . . . . . . . . . . 1 . . . 2 . . 1 . 1 1 1 2 . . Coupler Status 1 | . . . . . . . . . . . 1 . . . . . . . . . . . . . . . . . . . . Unauthorized Hacks 34 | . 2 . . . 2 . 11 . 4 . 3 1 . . . . 1 . 1 . 2 2 . . . 1 3 1 . . . Terminals 27 | . 2 . . . 2 . 7 . 3 . 3 1 . . . . 1 . 1 . . 2 . . . 1 3 1 . . . Track 2 | . . . . . . . . . . . . . . . . . 1 . . . . . . . . 1 . . . . . Assimilate 1 | . . . . . . . . . . . . . . . . . . . . . . . . . . . 1 . . . . Botnet 17 | . 1 . . . 1 . 2 . 3 . 3 1 . . . . . . 1 . . 2 . . . . 2 1 . . . Operators 2 | . 1 . . . 1 . . . . . . . . . . . . . . . . . . . . . . . . . . Skim 5 | . . . . . . . 5 . . . . . . . . . . . . . . . . . . . . . . . . Fabricators 3 | . . . . . . . . . 1 . . . . . . . . . . . 2 . . . . . . . . . . Prioritize 1 | . . . . . . . . . . . . . . . . . . . . . 1 . . . . . . . . . . Liberate 1 | . . . . . . . . . . . . . . . . . . . . . 1 . . . . . . . . . . Haulers 1 | . . . . . . . . . 1 . . . . . . . . . . . . . . . . . . . . . . Repair Stations . | . . . . . . . . . . . . . . . . . . . . . . . . . . . . . . . . Recycling Units 4 | . . . . . . . 4 . . . . . . . . . . . . . . . . . . . . . . . . Tunnel 4 | . . . . . . . 4 . . . . . . . . . . . . . . . . . . . . . . . . Scanalyzers . | . . . . . . . . . . . . . . . . . . . . . . . . . . . . . . . . Garrison Access . | . . . . . . . . . . . . . . . . . . . . . . . . . . . . . . . . Data Cores Recovered 4 | . 1 . . . . . . . . . . . 1 . . . 1 . . . . 1 . . . . . . . . . Used 3 | . 1 . . . . . . . . . . . . . . . 1 . . . . 1 . . . . . . . . . Hacking Detections 82 | . 5 . . . 1 3 6 . 5 2 6 2 3 8 . . 7 1 1 . 3 7 . 1 3 . 8 6 3 1 . Full Trace Events 5 | . . . . . . . . . 1 1 . . . 2 . . . . . . . . . . . . . 1 . . . Feedback Events 1 | . . . . . . . . . . . . . . . . . . . . . . . . . . . . 1 . . . Corruption 1 | . . . . . . . . . . . . . . . . . . . . . . . . . . . . 1 . . . Feedback Blocked . | . . . . . . . . . . . . . . . . . . . . . . . . . . . . . . . . Robot Schematics Acquired 55 | . . . . . . . . . . . . . . . . . . . . . . . . . . 2 . 53 . . . Robots Built 2 | . . . . . . . . . . . . . . . . . . . . . 2 . . . . . . . . . . Authchips . | . . . . . . . . . . . . . . . . . . . . . . . . . . . . . . . . Time 76 | . . . . . . . . . . . . . . . . . . . . . 76 . . . . . . . . . . Total Robot Build Rating 10 | . . . . . . . . . . . . . . . . . . . . . 10 . . . . . . . . . . Part Schematics Acquired 18 | . . . . . . . . . 1 . . . . . . . 8 1 . . . . . 1 . 7 . . . . . Parts Built . | . . . . . . . . . . . . . . . . . . . . . . . . . . . . . . . . Authchips . | . . . . . . . . . . . . . . . . . . . . . . . . . . . . . . . . Time . | . . . . . . . . . . . . . . . . . . . . . . . . . . . . . . . . Total Part Build Rating . | . . . . . . . . . . . . . . . . . . . . . . . . . . . . . . . . Part Studies Acquired 9 | . . . . . . . . . 1 . . . . . . . . . . . 1 . . 5 2 . . . . . . Parts Repaired 12 | . . . . . . . . . 1 . 1 . . . . . . . . . 4 2 . . 1 . 1 1 1 . . Time 876 | . . . . . . . . . 53 . 44 . . . . . . . . . 455 162 . . 54 . 36 36 36 . . Parts Recycled . | . . . . . . . . . . . . . . . . . . . . . . . . . . . . . . . . Recycled Matter . | . . . . . . . . . . . . . . . . . . . . . . . . . . . . . . . . Retrieved Matter . | . . . . . . . . . . . . . . . . . . . . . . . . . . . . . . . . Retrieved Components . | . . . . . . . . . . . . . . . . . . . . . . . . . . . . . . . . Parts Scanalyzed 1 | . . . . . . . . . 1 . . . . . . . . . . . . . . . . . . . . . . Part Schematics Acquired 1 | . . . . . . . . . 1 . . . . . . . . . . . . . . . . . . . . . . Parts Damaged 1 | . . . . . . . . . 1 . . . . . . . . . . . . . . . . . . . . . . Bothacking | -11 -10 -10 -10 -9 -8 -8 -8 -8 -6 -6 -6 -6 -5 -5 -5 -5 -5 -5 -4 -4 -4 -4 -4 -3 -3 -3 -2 -2 -1 -1 -1 ------------ Run | Yrd Mat Min Exi Min Mat Sto Rec Scr Fac Gar Fac Gar Fac Ext Cet Arc Hub Gar Fac Was Fac Arm Lab Res Qua Frg Res Tes Acc Com Ac0 Used RIF Installer 3 | . . . . . . . . . . 1 . 1 . . . . . 1 . . . . . . . . . . . . . Command Fork 1 | . . . . . . . . . . . . 1 . . . . . . . . . . . . . . . . . . . Program Shield 1 | . . . . . . . . . . . . . . . . . . 1 . . . . . . . . . . . . . Robots Hacked 50 | . . . . . . . . . . . 2 2 4 . . . 1 . 1 6 8 5 . 4 6 4 2 3 . 2 . Non-combat 8 | . . . . . . . . . . . 2 . 1 . . . . . 1 . . 1 . 2 1 . . . . . . Combat 17 | . . . . . . . . . . . . 2 3 . . . 1 . . 6 . . . . 2 1 . . . 2 . Robot Hacks Applied 33 | . . . . . . . . . . . 2 2 5 . . . 1 . 3 6 . 4 . 3 3 1 . . . 3 . parse_system 1 | . . . . . . . . . . . . 1 . . . . . . . . . . . . . . . . . . . drop_inventory 1 | . . . . . . . . . . . . . . . . . . . . . . . . 1 . . . . . . . purge_threat 8 | . . . . . . . . . . . . . 2 . . . . . 3 . . 3 . . . . . . . . . block_reporting 3 | . . . . . . . . . . . . . . . . . . . . . . 1 . 1 1 . . . . . . map_route 1 | . . . . . . . . . . . 1 . . . . . . . . . . . . . . . . . . . . disable_scanner 1 | . . . . . . . . . . . . . . . . . . . . . . . . . 1 . . . . . . ignore_targets 6 | . . . . . . . . . . . . . . . . . . . . 6 . . . . . . . . . . . wipe_record 3 | . . . . . . . . . . . . . . . . . 1 . . . . . . . . . . . . 2 . reboot_system 2 | . . . . . . . . . . . . . 1 . . . . . . . . . . . . . . . . 1 . formatsys_low 2 | . . . . . . . . . . . 1 . . . . . . . . . . . . 1 . . . . . . . formatsys_high 5 | . . . . . . . . . . . . 1 2 . . . . . . . . . . . 1 1 . . . . . Manual 25 | . . . . . . . . . . . . . . . . . . . . . 8 4 . 2 3 3 2 3 . . . Relay Couplers Released 53 | . . . . . . . . . . 17 . 18 . . . . . 13 . . 2 . . . 3 . . . . . . Machine Destruction 46 | . . . . . . . . . . 13 . 18 . . . . . 13 . . 2 . . . . . . . . . . Programmers 7 | . . . . . . . . . . 4 . . . . . . . . . . . . . . 3 . . . . . . Attached 15 | . . . . . . . . . . . 1 1 3 . . . 1 1 1 1 . 2 . . 2 1 . . . 1 . Fabnet Peak Effective % . | . . . . . . . . . . . . . . . . . . . . . . . . . . . . . . . . Robots Rewired 36 | . . . . . . . 4 . . . . 3 . 21 . . . . . . . 7 . . . 1 . . . . . Allies Hacked 2 | . . . . . . . . . . 1 . . . . . . . . . . . 1 . . . . . . . . . Hacks Repelled . | . . . . . . . . . . . . . . . . . . . . . . . . . . . . . . . . Allies | -11 -10 -10 -10 -9 -8 -8 -8 -8 -6 -6 -6 -6 -5 -5 -5 -5 -5 -5 -4 -4 -4 -4 -4 -3 -3 -3 -2 -2 -1 -1 -1 -------- Run | Yrd Mat Min Exi Min Mat Sto Rec Scr Fac Gar Fac Gar Fac Ext Cet Arc Hub Gar Fac Was Fac Arm Lab Res Qua Frg Res Tes Acc Com Ac0 Total Allies 100 | . . . . . . 10 4 . 3 10 1 8 2 27 5 . . 2 . . 5 17 . 1 1 3 1 . . . . Largest Group 22 | . . . . . . 10 9 6 1 1 1 4 4 22 18 15 11 2 2 1 2 13 . 1 1 3 1 . . . . Highest-Rated Group 991 | . . . . . . 173 139 88 30 85 26 333 333 863 991 838 652 157 157 62 98 685 . 10 344 564 26 . . . . Highest-Rated Ally 344 | . . . . . . 29 29 29 30 85 26 148 119 159 159 110 96 95 95 62 64 68 . 10 344 344 26 . . . . Total Orders 74 | . . . . . . . 6 7 1 2 . 5 9 3 3 2 11 . . . 1 . . . . 1 . 3 . 3 17 STAY 29 | . . . . . . . 4 5 . . . 2 4 1 1 1 10 . . . . . . . . 1 . . . . . FOLLOW 15 | . . . . . . . 2 2 . . . 2 5 1 1 1 1 . . . . . . . . . . . . . . EXPLORE 5 | . . . . . . . . . . 1 . . . . 1 . . . . . 1 . . . . . . . . . 2 RETURN 25 | . . . . . . . . . 1 1 . 1 . 1 . . . . . . . . . . . . . 3 . 3 15 Ally Attacks 983 | . . . . . . 19 11 7 12 46 . 86 18 147 45 32 115 . 12 17 10 141 . . 5 69 . 6 . 32 153 Total Damage 38708 | . . . . . . 202 149 97 163 1156 . 2784 548 3569 1672 1051 4159 . 521 911 191 5010 . . 369 4110 . 138 . 2507 9401 Kills 187 | . . . . . . 1 1 2 . 10 . 26 6 31 8 4 22 . 2 . . 28 . . 3 15 . 1 . . 27 Allies Corrupted 9 | . . . . . . . . 3 . . . . 1 . . . 2 . . . . 3 . . . . . . . . . Allies Melted 1 | . . . . . . . . . . 1 . . . . . . . . . . . . . . . . . . . . . Intel | -11 -10 -10 -10 -9 -8 -8 -8 -8 -6 -6 -6 -6 -5 -5 -5 -5 -5 -5 -4 -4 -4 -4 -4 -3 -3 -3 -2 -2 -1 -1 -1 ------- Run | Yrd Mat Min Exi Min Mat Sto Rec Scr Fac Gar Fac Gar Fac Ext Cet Arc Hub Gar Fac Was Fac Arm Lab Res Qua Frg Res Tes Acc Com Ac0 Active Infowar (turns) 20102 | 46 843 1029 219 244 280 854 822 1519 900 304 991 16 542 665 21 968 824 949 508 165 1891 1023 . 228 1095 132 704 1050 336 855 79 Sensors 8003 | . . . . . 1 . . . 832 8 990 . 542 665 3 968 824 2 429 165 1852 722 . . . . . . . . . IFF 2 | . . . . . . . . . . 2 . . . . . . . . . . . . . . . . . . . . . Structural 2562 | . . . . . . . . . . . . . . . . . 92 . . . . 200 . 228 819 . 520 287 336 1 79 Seismic 8557 | 46 843 1029 219 244 280 854 822 1519 68 294 1 16 . . 18 . . . . . . . . . 1068 132 299 712 . 93 . Cloaking 2427 | . . . . . . . . . . . . . . . . . . . . . . . . . . . 616 620 336 855 . Jamming 1623 | . . . . . . . . . . . . . . . . . . 947 503 5 40 128 . . . . . . . . . Robot Analysis Total 101 | . 2 . . . 1 . . . . . . . . . . . . . . . . . . . . . . 98 . . . Derelict Logs Recovered 2 | . . 1 . 1 . . . . . . . . . . . . . . . . . . . . . . . . . . . Drone Launches 65 | . . . . . . . . . 1 2 . 1 . 2 1 . . . . . 1 . . . . . . 8 . 4 45 Drone Recoveries 60 | . . . . . . . . . 1 2 . 1 . 2 1 . . . . . . . . . . . . 8 . 4 41 Exploration | -11 -10 -10 -10 -9 -8 -8 -8 -8 -6 -6 -6 -6 -5 -5 -5 -5 -5 -5 -4 -4 -4 -4 -4 -3 -3 -3 -2 -2 -1 -1 -1 ------------- Run | Yrd Mat Min Exi Min Mat Sto Rec Scr Fac Gar Fac Gar Fac Ext Cet Arc Hub Gar Fac Was Fac Arm Lab Res Qua Frg Res Tes Acc Com Ac0 Turns Passed 34810 | 103 1021 1109 219 244 951 1200 1498 3087 1053 966 1053 1275 645 1412 480 1273 1161 979 508 165 2192 1846 409 616 1214 2799 770 1158 336 1759 1309 Spaces Moved 23374 | 59 502 463 152 167 355 554 620 1999 572 582 542 612 361 700 164 254 856 622 402 137 1145 994 191 436 808 1811 1174 1207 756 1864 2313 Core 129 | 8 . . . . 6 . . . . . . . . . . . . . . . . . 115 . . . . . . . . Treads 3329 | 51 502 291 . . 71 278 620 1395 . . . . . 121 . . . . . . . . . . . . . . . . . Legs 7883 | . . . . . 111 276 . . . . . . . . 57 254 856 622 402 137 1145 994 76 436 808 1709 . . . . . Wheels 4617 | . . 172 152 167 167 . . 604 572 582 542 612 361 579 107 . . . . . . . . . . . . . . . . Hover 7416 | . . . . . . . . . . . . . . . . . . . . . . . . . . 102 1174 1207 756 1864 2313 Flight . | . . . . . . . . . . . . . . . . . . . . . . . . . . . . . . . . Fastest Speed 33 | 50 160 130 145 145 105 120 145 100 110 130 130 145 130 130 130 96 96 96 100 103 98 105 50 113 113 33 33 33 36 36 36 Average Speed 99 | 145 173 200 145 145 175 152 145 131 121 130 155 159 149 150 145 107 96 96 102 103 105 117 80 117 113 108 37 37 36 36 36 Slowest Speed 900 | 160 240 240 145 145 900 305 145 145 155 130 160 160 160 250 175 175 96 100 103 103 111 265 126 125 119 172 38 103 38 36 103 Overloaded Moves . | . . . . . . . . . . . . . . . . . . . . . . . . . . . . . . . . Propulsion Burnouts . | . . . . . . . . . . . . . . . . . . . . . . . . . . . . . . . . Robots Hopped . | . . . . . . . . . . . . . . . . . . . . . . . . . . . . . . . . Potential Cave-ins 25 | . . . . . . . . 2 . . . . . . . . . . . . . . . . . 21 . 2 . . . Cave-ins Triggered 1 | . . . . . . . . . . . . . . . . . . . . . . . . . . 1 . . . . . Teleports 7 | . . . . . . . . . . . . . . . . . . . . . . . . . . 5 . . . 1 1 Exploration Rate (%) 56 | 5 79 85 54 38 21 75 94 84 22 53 15 77 8 81 56 92 74 65 8 86 37 59 93 18 85 37 47 87 28 62 97 Regions Visited 31 Branch Regions 17 Pre-discovered Areas 11 | . . 2 1 . . . 4 4 . . . . . . . . . . . . . . . . . . . . . . . Known Exits Taken 15 | . . . . . . . 1 . 1 . 1 . 1 1 1 1 1 . . . 1 1 1 1 . 1 1 1 . . . Unknown Exits Taken 11 | 1 1 1 1 1 1 1 . 1 . . . . . . . . . . . . . . . . 1 . . . 1 1 . Scrap Searched 12 | . . 1 . 1 . . . 10 . . . . . . . . . . . . . . . . . . . . . . . Spaces Dug 313 | . . . . . . 3 2 . 11 1 13 13 2 1 . . 14 16 8 . 33 66 17 7 16 7 32 18 8 18 7 Terrain Destroyed 542 | . . . . . 19 3 2 . 14 5 13 15 2 11 2 1 14 21 8 . 141 130 17 7 16 7 32 24 8 18 12 Melee 248 | . . . . . . 3 2 . 11 1 13 13 2 1 . . 14 15 8 . 31 17 17 7 13 7 31 15 4 18 5 Projectile 55 | . . . . . 19 . . . 1 . . . . 8 2 1 . . . . . . . . 3 . 1 9 4 . 7 AOE 220 | . . . . . . . . . . . . . . . . . . . . . 107 113 . . . . . . . . . Terrain Rammed . | . . . . . . . . . . . . . . . . . . . . . . . . . . . . . . . . Walls Destroyed . | . . . . . . . . . . . . . . . . . . . . . . . . . . . . . . . . Machines Disabled . | . . . . . . . . . . . . . . . . . . . . . . . . . . . . . . . . Actions | -11 -10 -10 -10 -9 -8 -8 -8 -8 -6 -6 -6 -6 -5 -5 -5 -5 -5 -5 -4 -4 -4 -4 -4 -3 -3 -3 -2 -2 -1 -1 -1 --------- Run | Yrd Mat Min Exi Min Mat Sto Rec Scr Fac Gar Fac Gar Fac Ext Cet Arc Hub Gar Fac Was Fac Arm Lab Res Qua Frg Res Tes Acc Com Ac0 Total 33341 | 70 590 558 151 169 555 784 1201 2453 860 740 721 841 441 1006 393 1228 1133 874 477 160 1987 1557 433 496 1054 2556 1447 1880 812 2953 2761 Wait 6566 | . 33 42 . 1 41 94 523 395 178 69 126 70 32 120 196 929 191 99 44 5 662 326 141 9 153 309 143 536 41 879 179 Move 23346 | 59 501 462 151 166 354 553 619 1998 572 581 542 611 360 699 163 253 856 621 402 136 1144 993 190 435 807 1809 1173 1206 755 1863 2312 Hop . | . . . . . . . . . . . . . . . . . . . . . . . . . . . . . . . . Pick Up 308 | 2 10 2 . 2 31 13 2 15 13 5 10 13 4 7 3 10 8 8 3 3 10 13 31 2 7 40 6 6 3 11 15 Fast Attach 160 | 7 1 2 . . 19 10 1 3 8 1 1 4 1 . 2 2 2 3 1 2 5 26 5 2 4 32 . 4 1 8 3 Attach 149 | . 3 6 . . 8 3 1 1 12 2 3 4 3 7 4 2 2 4 3 . 11 11 4 2 4 22 6 2 3 5 11 Detach 82 | . 4 1 . . 4 1 1 6 7 1 3 2 1 3 1 2 1 3 1 1 1 9 4 . 2 11 1 1 . 8 2 Swap 350 | 1 5 2 . . 14 15 4 7 9 4 7 12 10 4 5 2 10 10 5 1 32 23 1 3 17 33 21 31 1 29 32 Drop 280 | . 1 . . . 19 24 2 20 8 5 5 15 2 3 7 8 10 6 2 4 4 19 31 3 6 38 . 10 2 16 10 Fire 463 | 1 30 41 . . 60 60 1 . 11 11 8 30 14 22 11 1 6 28 5 8 40 19 . 5 11 15 3 8 2 4 8 Melee 1352 | . . . . . 4 8 10 8 42 32 16 43 14 28 1 19 36 78 11 . 78 100 26 34 42 242 94 76 4 117 189 Ram . | . . . . . . . . . . . . . . . . . . . . . . . . . . . . . . . . Kick 3 | . . . . . . 3 . . . . . . . . . . . . . . . . . . . . . . . . . Crush 3 | . 2 . . . 1 . . . . . . . . . . . . . . . . . . . . . . . . . . Escape Stasis 110 | . . . . . . . . . . 29 . 32 . 16 . . 5 14 . . . . . . . 1 . . . 13 . Rewire 162 | . . . . . . . 37 . . . . 5 . 97 . . . . . . . 17 . 1 1 4 . . . . . Trap . | . . . . . . . . . . . . . . . . . . . . . . . . . . . . . . . . Miscellaneous 7 | . . . . . . . . . . . . . . . . . 6 . . . . 1 . . . . . . . . . Route ------- -11/Scrapyard -10/Materials (discovered 4 exits: [*Mat x2] / [*Min] / [*Sub]) -10/Mines (discovered 3 exits: [*Mat x2] / *Exi) -10/Exiles -9/Mines -8/Materials -8/Storage (discovered 2 exits: [*Fac] / *Rec) -8/Recycling (discovered 2 exits: *Fac / *Scr) -8/Scraptown (discovered 2 exits: *Fac x2) -6/Factory (discovered 7 exits: Fac x4 / *Low x2 / Gar) -6/Garrison (discovered 2 exits: *Fac x2) -6/Factory (discovered 7 exits: *Fac x4 / Low x2 / Gar) -6/Garrison (discovered 2 exits: *Fac x2) -5/Factory -5/Extension (discovered 2 exits: *Fac / *Cet) -5/Cetus (discovered 2 exits: *Fac / *Arc) -5/Archives (discovered 3 exits: *Fac / *Hub x2) -5/Hub_04(d) (discovered 5 exits: *Fac x4 / Gar) -5/Garrison (discovered 3 exits: *Fac x3) -4/Factory -4/Waste -4/Factory (discovered 3 exits: *Res x2 / *Arm) -4/Armory (discovered 2 exits: Res / *Lab) -4/Lab -3/Research (discovered 5 exits: Res x3 / *Qua x2) -3/Quarantine (discovered 3 exits: *Res / [*Sec] / *Frg) -3/Protoforge -2/Research (discovered 4 exits: *Acc x2 / *Tes x2) -2/Testing -1/Access -1/Command (discovered 3 exits: [*Sur x2] / [*Ac0]) -1/Access_0 0b11 Command History --------- Turn | Location | Event 3 | -11/Scrapyard | Discovered new exit (range 16) 104 | -11/Scrapyard | Entered Materials 304 | -10/Materials | Build established: Mutant 515 | -10/Materials | Discovered new exit (range 13) 520 | -10/Materials | Discovered new exit (range 11) 893 | -10/Materials | Discovered new exit (range 7) 1082 | -10/Materials | Discovered new exit (range 12) 1125 | -10/Materials | Entered Mines 1132 | -10/Mines | Met a Derelict bent on vengeance 1261 | -10/Mines | Learned location of Zion (-6) 1263 | -10/Mines | Discovered new exit (range 6) 1267 | -10/Mines | Learned location of Storage (-8) 1512 | -10/Mines | Assembled infested the area 1618 | -10/Mines | Core integrity fell below 50% 1861 | -10/Mines | Discovered new exit (range 16) 1988 | -10/Mines | Lost 4 parts (1p2n1u) 2004 | -10/Mines | Core integrity fell below 20% 2228 | -10/Mines | Deemed a non-threat by the Exiles lab entrance 2228 | -10/Mines | Discovered new exit (range 5) 2234 | -10/Mines | Entered Exiles 2271 | -10/Exiles | Met 8R-AWN 2292 | -10/Exiles | Met EX-HEX 2366 | -10/Exiles | Met EX-DEC 2442 | -10/Exiles | Discovered new exit (range 10) 2453 | -10/Exiles | Entered Mines 2476 | -9/Mines | Learned 2 Materials zone layouts 2512 | -9/Mines | Found a damaged Exp. Sensor Array with a note attached 2515 | -9/Mines | Found Prototype Device 2607 | -9/Mines | Discovered new exit (range 9) 2697 | -9/Mines | Entered Materials 2697 | -8/Materials | Evolved 4 slots: Propulsion x2, Utility x2 2821 | -8/Materials | Identified Exp. Sensor Array 2828 | -8/Materials | Discovered new exit (range 5) 3057 | -8/Materials | Core integrity fell below 50% 3085 | -8/Materials | Lost 10 parts (1p4n2u3w) 3591 | -8/Materials | Build established: Scavenger-Mutant 3648 | -8/Materials | Entered Storage 4234 | -8/Storage | Discovered new exit (range 16) 4301 | -8/Storage | Assisted by bots powering up and referring to "LRC-V3" 4387 | -8/Storage | Lost 3 allies 4472 | -8/Storage | Met 01-MTF 4590 | -8/Storage | Build established: Commander-Mutant 4691 | -8/Storage | Found Prototype Processor 4739 | -8/Storage | Discovered new exit (range 6) 4848 | -8/Storage | Entered Recycling 4848 | -8/Recycling | Accompanied by 6 allies (01-MTF) 5445 | -8/Recycling | Discovered new exit (range 15) 5632 | -8/Recycling | Learned Factory emergency access door positions 5698 | -8/Recycling | Learned Factory garrison access intel 5802 | -8/Recycling | Identified exit to Scraptown 5892 | -8/Recycling | Learned location of 2 exits from Factory 5954 | -8/Recycling | Learned 2 Storage zone layouts 6028 | -8/Recycling | Learned location of 2 exits from Factory 6142 | -8/Recycling | Scanned before Scraplab entrance 6181 | -8/Recycling | Destroyed 01-MTF 6202 | -8/Recycling | Found Prototype Energy Gun 6203 | -8/Recycling | Identified KN-7UR's Autopenetrator 6211 | -8/Recycling | Lost 3 allies 6215 | -8/Recycling | Entered Scraplab 6346 | -8/Recycling | Entered Scraptown 6346 | -8/Scraptown | Accompanied by 6 allies 6737 | -8/Scraptown | Discovered new exit (range 11) 6829 | -8/Scraptown | Visited Spacefarers 6950 | -8/Scraptown | Visited Red Mages 7012 | -8/Scraptown | Visited Bundlers 7173 | -8/Scraptown | Visited UFD Registry 7173 | -8/Scraptown | Registered with UFD as "Flexiwalker" 7205 | -8/Scraptown | Visited Junk Repository 7241 | -8/Scraptown | Visited A0-MCA Data Center 7267 | -8/Scraptown | Visited Abandonware Association 7282 | -8/Scraptown | Learned abandonware demo "SHUTEYE.EXE" 7282 | -8/Scraptown | Learned abandonware demo "REVENGE.EXE" 7311 | -8/Scraptown | Visited Observation Area 7421 | -8/Scraptown | Visited DA-N13 Charitable Foundation 7434 | -8/Scraptown | Found DCF Scrap (29 items) 7470 | -8/Scraptown | Visited Sword Containment 7486 | -8/Scraptown | Visited Junk Repository 7510 | -8/Scraptown | Visited Chapter 10 7537 | -8/Scraptown | Visited Science Guys 7560 | -8/Scraptown | Visited Cartography Club 7777 | -8/Scraptown | Found Prototype Slashing Weapon 7920 | -8/Scraptown | Given an A- rating by A0-MCA 7922 | -8/Scraptown | Found A0-MCA's Component Scanner 8000 | -8/Scraptown | Build established: Mutant 8364 | -8/Scraptown | Found Scrap Suit 8548 | -8/Scraptown | Found Deep Structural Scanner 8558 | -8/Scraptown | Learned location of Recycling (-8) 8558 | -8/Scraptown | Learned location of Warlord (-4) 8558 | -8/Scraptown | Learned location of Extension (-5) 8558 | -8/Scraptown | Learned 12 Factory zone layouts 8558 | -8/Scraptown | Learned 16 Factory zone layouts 8558 | -8/Scraptown | Learned 12 Research zone layouts 8558 | -8/Scraptown | Learned 16 Research zone layouts 8558 | -8/Scraptown | Learned 4 Mines zone layouts 8558 | -8/Scraptown | Learned 16 Lower Caves zone layouts 8558 | -8/Scraptown | Learned 8 Upper Caves zone layouts 8558 | -8/Scraptown | Learned 12 Upper Caves zone layouts 8558 | -8/Scraptown | Learned 20 Upper Caves zone layouts 8558 | -8/Scraptown | Learned 20 Proximity Caves zone layouts 8558 | -8/Scraptown | Learned location of 3 exits from Factory 8558 | -8/Scraptown | Learned location of 2 exits from Lower Caves 8558 | -8/Scraptown | Learned location of 2 exits from Proximity Caves 8675 | -8/Scraptown | Identified Companion Sword 8730 | -8/Scraptown | Build established: Scrapper 8893 | -8/Scraptown | Identified Exp. Targeting Computer 8986 | -8/Scraptown | Met Optimus 8986 | -8/Scraptown | Accepted into 0bPrime 9386 | -8/Scraptown | Civil war broke out across Scraptown 9387 | -8/Scraptown | Attacked by Scraptown defenders 9396 | -8/Scraptown | Found Master Drone Bay 9419 | -8/Scraptown | Core integrity fell below 20% 9426 | -8/Scraptown | Discovered new exit (range 3) 9428 | -8/Scraptown | Lost 3 allies 9433 | -8/Scraptown | Entered Factory 9433 | -6/Factory | Evolved 4 slots: Utility x4 9434 | -6/Factory | Identified exit to Lower Caves 9435 | -6/Factory | Identified exit to Factory 9438 | -6/Factory | Loaded intel: 3 garrison access locations 9721 | -6/Factory | Build established: Hacker-Mutant 9882 | -6/Factory | Lost 5 parts (2p2n1u) 9990 | -6/Factory | Repaired Broken CPS Tube 10194 | -6/Factory | Master Drone dominated L-41 Fighter. 10202 | -6/Factory | Master Drone dominated G-50 Soldier. 10204 | -6/Factory | Master Drone dominated G-50 Soldier. 10244 | -6/Factory | Lost 3 allies 10486 | -6/Factory | Identified exit to Garrison 10486 | -6/Factory | Entered Garrison 10534 | -6/Garrison | Rescued a captive Derelict 10536 | -6/Garrison | Rescued a captive Derelict 10672 | -6/Garrison | Triggered checkpoint 10701 | -6/Garrison | Garrison Relay disabled 10745 | -6/Garrison | Build established: Mutant 10788 | -6/Garrison | Triggered checkpoint 10789 | -6/Garrison | Master Drone dominated C-17 Slicer. 10792 | -6/Garrison | Master Drone dominated C-17 Slicer. 10793 | -6/Garrison | Master Drone dominated C-17 Slicer. 10797 | -6/Garrison | Master Drone dominated B-75 Beast. 10804 | -6/Garrison | Triggered checkpoint 10817 | -6/Garrison | Master Drone dominated G-50 Soldier. 10822 | -6/Garrison | Triggered checkpoint 10826 | -6/Garrison | Master Drone dominated P-70 Sage. 10835 | -6/Garrison | Master Drone dominated G-50 Soldier. 10865 | -6/Garrison | Lost 6 allies 11002 | -6/Garrison | Garrison Relay disabled 11044 | -6/Garrison | Triggered checkpoint 11055 | -6/Garrison | Master Drone dominated C-17 Slicer. 11077 | -6/Garrison | Garrison Relay disabled 11112 | -6/Garrison | Discovered new exit (range 10) 11252 | -6/Garrison | Installed Relay Interface Framework 11320 | -6/Garrison | Spotted B-75 Beast 11323 | -6/Garrison | Spotted B-75 Beast 11429 | -6/Garrison | Discovered new exit (range 8) 11439 | -6/Garrison | Identified exit to Factory 11452 | -6/Garrison | Entered Factory 11642 | -6/Factory | Repaired Microactuators 12297 | -6/Factory | Discovered exit to Factory (range 6) 12505 | -6/Factory | Identified exit to Garrison 12505 | -6/Factory | Entered Garrison 12505 | -6/Garrison | Accompanied by 1 ally 12585 | -6/Garrison | Triggered checkpoint 12657 | -6/Garrison | Garrison Relay disabled 12705 | -6/Garrison | Learned Factory security intel 12755 | -6/Garrison | Spotted B-90 Cyclops 12763 | -6/Garrison | Spotted B-75 Beast 12784 | -6/Garrison | Rewired B-90 Cyclops 12792 | -6/Garrison | Master Drone dominated P-60 Hacker. 12808 | -6/Garrison | Allies destroyed B-75 Beast 12934 | -6/Garrison | Master Drone dominated S-27 Virus. 12935 | -6/Garrison | Triggered checkpoint 12948 | -6/Garrison | Build established: Bothacker-Mutant 12989 | -6/Garrison | Triggered checkpoint 12992 | -6/Garrison | Triggered checkpoint 13019 | -6/Garrison | Triggered checkpoint 13053 | -6/Garrison | Lost 3 allies 13126 | -6/Garrison | Discovered exit to Factory (range 11) 13155 | -6/Garrison | Triggered checkpoint 13168 | -6/Garrison | Found embedded Infiltrators 13214 | -6/Garrison | Garrison Relay disabled 13436 | -6/Garrison | Expanded RIF knowledge: Command Fork 13486 | -6/Garrison | Discovered exit to Factory (range 15) 13555 | -6/Garrison | Triggered checkpoint 13609 | -6/Garrison | Garrison Relay disabled 13617 | -6/Garrison | Garrison Relay disabled 13663 | -6/Garrison | Rewired Executioner 13666 | -6/Garrison | Rewired Executioner 13780 | -6/Garrison | Entered Factory 13780 | -5/Factory | Accompanied by 3 allies 13780 | -5/Factory | Evolved 2 slots: Propulsion x1, Utility x1 13781 | -5/Factory | Identified exit to Extension 13785 | -5/Factory | Attached CPS modules to Executioner. 13790 | -5/Factory | Attached CPS modules to Executioner. 14425 | -5/Factory | Entered Extension 14425 | -5/Extension | Accompanied by 4 allies 14641 | -5/Extension | Rescued A7 15045 | -5/Extension | Build established: Commander-Mutant 15121 | -5/Extension | Spotted B-75 Beast 15125 | -5/Extension | Master Drone dominated B-75 Beast. 15126 | -5/Extension | Master Drone dominated B-75 Beast. 15128 | -5/Extension | Found Exp. Core Analyzer 15324 | -5/Extension | Lost 4 allies 15372 | -5/Extension | Rescued a captive Derelict 15518 | -5/Extension | Lost 3 allies 15520 | -5/Extension | Rescued a captive Derelict 15521 | -5/Extension | Rescued a captive Derelict 15746 | -5/Extension | Discovered new exit (range 10) 15747 | -5/Extension | Discovered new exit (range 6) 15754 | -5/Extension | Identified exit to Cetus 15833 | -5/Extension | Identified exit to Factory 15837 | -5/Extension | Entered Cetus 15837 | -5/Cetus | Accompanied by 18 allies (A7) 15842 | -5/Cetus | Acquired a Cetus Manufacturing Module code from A7 15849 | -5/Cetus | Spotted Cetus Guard 15849 | -5/Cetus | Spotted Cetus Guard 15857 | -5/Cetus | Spotted Cetus Guard 15858 | -5/Cetus | Spotted Cetus Guard 15859 | -5/Cetus | Allies destroyed Cetus Guard 15869 | -5/Cetus | Allies destroyed Cetus Guard 15878 | -5/Cetus | Allies destroyed Cetus Guard 15884 | -5/Cetus | Allies destroyed Cetus Guard 15909 | -5/Cetus | Lost 7 allies 15954 | -5/Cetus | Started Cetus Manufacturing Module 15970 | -5/Cetus | Discovered new exit (range 16) 15979 | -5/Cetus | Manufactured an Enhanced Grunt 16004 | -5/Cetus | Manufactured an Enhanced Grunt 16029 | -5/Cetus | Manufactured an Enhanced Grunt 16054 | -5/Cetus | Manufactured an Enhanced Grunt 16079 | -5/Cetus | Manufactured an Enhanced Grunt 16135 | -5/Cetus | Spotted Cetus Guard 16136 | -5/Cetus | Spotted Cetus Guard 16140 | -5/Cetus | Spotted Cetus Guard 16145 | -5/Cetus | Spotted Cetus Guard 16146 | -5/Cetus | Allies destroyed Cetus Guard 16147 | -5/Cetus | Destroyed Cetus Guard 16148 | -5/Cetus | Allies destroyed Cetus Guard 16154 | -5/Cetus | Destroyed Cetus Guard 16158 | -5/Cetus | Discovered exit to Factory (range 15) 16165 | -5/Cetus | Met Revision 17 16212 | -5/Cetus | Murdered A7 16215 | -5/Cetus | Extracted ID and sensor layout for unrecognized location from A7's data core 16275 | -5/Cetus | Identified exit to Archives 16317 | -5/Cetus | Entered Archives 16317 | -5/Archives | Accompanied by 15 allies 16394 | -5/Archives | Lost 3 allies 16401 | -5/Archives | Destroyed Executioner 16450 | -5/Archives | Discovered new exit (range 13) 16534 | -5/Archives | Discovered new exit (range 14) 16579 | -5/Archives | Discovered exit to Factory (range 14) 16616 | -5/Archives | Found Exp. Core Analyzer 16620 | -5/Archives | Found Exp. Core Analyzer 16706 | -5/Archives | Build established: Scavenger-Mutant 17126 | -5/Archives | Build established: Commander-Mutant 17557 | -5/Archives | Identified exit to Hub_04(d) 17590 | -5/Archives | Entered Hub_04(d) 17590 | -5/Hub_04(d) | Accompanied by 11 allies 17676 | -5/Hub_04(d) | Discovered exit to Factory (range 12) 17946 | -5/Hub_04(d) | Forged Quantum Companion 17992 | -5/Hub_04(d) | Build established: Scavenger-Mutant 18043 | -5/Hub_04(d) | Discovered exit to Factory (range 13) 18178 | -5/Hub_04(d) | Garrison activated, responded to threat 18183 | -5/Hub_04(d) | Spotted B-75 Beast 18259 | -5/Hub_04(d) | Destroyed B-75 Beast 18360 | -5/Hub_04(d) | Discovered exit to Factory (range 3) 18414 | -5/Hub_04(d) | Discovered exit to Factory (range 15) 18484 | -5/Hub_04(d) | Network Hub disabled 18748 | -5/Hub_04(d) | Identified exit to Garrison 18751 | -5/Hub_04(d) | Entered Garrison 18913 | -5/Garrison | Triggered checkpoint 18930 | -5/Garrison | Expanded RIF knowledge: Program Shield 18937 | -5/Garrison | Garrison Relay disabled 19039 | -5/Garrison | Triggered checkpoint 19216 | -5/Garrison | Found Relay Coupler [Proto] 19218 | -5/Garrison | Found Relay Coupler [Proto] 19220 | -5/Garrison | Found Relay Coupler [Proto] 19222 | -5/Garrison | Found Relay Coupler [Proto] 19234 | -5/Garrison | Discovered exit to Factory (range 14) 19292 | -5/Garrison | Garrison Relay disabled 19370 | -5/Garrison | Triggered checkpoint 19417 | -5/Garrison | Triggered checkpoint 19470 | -5/Garrison | Garrison Relay disabled 19509 | -5/Garrison | Build established: Bothacker-Mutant 19553 | -5/Garrison | Discovered exit to Factory (range 13) 19640 | -5/Garrison | Triggered checkpoint 19690 | -5/Garrison | Found embedded Infiltrators 19702 | -5/Garrison | Discovered exit to Factory (range 10) 19730 | -5/Garrison | Entered Factory 19730 | -4/Factory | Accompanied by 2 allies 19730 | -4/Factory | Evolved 2 slots: Propulsion x1, Utility x1 19731 | -4/Factory | Identified exit to Research 20238 | -4/Factory | Sucked down chute 20238 | -4/Factory | Entered Waste 20250 | -4/Waste | Found Broken Adv. Force Booster 20253 | -4/Waste | EMP discharged 20253 | -4/Waste | System corruption reached 10% 20258 | -4/Waste | 1 allies followed down the chute 20259 | -4/Waste | Found Prototype Device 20264 | -4/Waste | Spotted C-40 Crusher 20275 | -4/Waste | Spotted C-40 Crusher 20276 | -4/Waste | Spotted C-40 Crusher 20292 | -4/Waste | Spotted C-40 Crusher 20294 | -4/Waste | Spotted C-40 Crusher 20297 | -4/Waste | Spotted C-40 Crusher 20333 | -4/Waste | Found Prototype Launcher 20333 | -4/Waste | Identified Tactical Quantum Warhead 20353 | -4/Waste | EMP discharged 20385 | -4/Waste | Discovered new exit (range 15) 20399 | -4/Waste | Identified exit to Factory 20403 | -4/Waste | Entered Factory 20403 | -4/Factory | Accompanied by 1 ally 20450 | -4/Factory | Identified Exp. Phase Shifter 20666 | -4/Factory | Repaired Centrium Medium Armor Plating 20770 | -4/Factory | Repaired Broken Adv. Force Booster 20907 | -4/Factory | Repaired Broken Enh. Biometal Leg 21196 | -4/Factory | Fabricated E-15 Imp? 21215 | -4/Factory | Garrison activated, responded to threat 21655 | -4/Factory | Build established: Scavenger-Mutant 22089 | -4/Factory | Discovered exit to Research (range 12) 22153 | -4/Factory | First assault squad dispatched 22178 | -4/Factory | Repaired Centrium Medium Armor Plating 22227 | -4/Factory | Central database locked down 22367 | -4/Factory | Discovered exit to Research (range 7) 22431 | -4/Factory | Discovered new exit (range 20) 22432 | -4/Factory | Master Drone dominated Y-72 Warden. 22594 | -4/Factory | Identified exit to Armory 22595 | -4/Factory | Entered Armory 22712 | -4/Armory | Found Prototype Processor 22712 | -4/Armory | Identified Exp. Signal Interpreter 22790 | -4/Armory | System corruption reached 30% 22960 | -4/Armory | Repaired Centrium Medium Armor Plating? 22994 | -4/Armory | Assisted by bots powering up and referring to "LRC-V3" 23199 | -4/Armory | Spotted B-86 Titan 23242 | -4/Armory | Allies destroyed B-86 Titan 23345 | -4/Armory | First assault squad dispatched 23367 | -4/Armory | Lost 6 allies 23860 | -4/Armory | Lost 12 parts (2p5n4u1w) 24007 | -4/Armory | Lost 4 parts (3n1u) 24116 | -4/Armory | Core integrity fell below 50% 24175 | -4/Armory | Discovered exit to Research (range 9) 24340 | -4/Armory | Repaired Centrium Medium Armor Plating 24437 | -4/Armory | Discovered new exit (range 3) 24440 | -4/Armory | Identified exit to Lab 24441 | -4/Armory | Entered Lab 24457 | -4/Lab | Lost 3 allies 24480 | -4/Lab | Discovered exit to Research (range 8) 24515 | -4/Lab | Hidden lab's door opened automatically 24515 | -4/Lab | Sensor layout match revealed 24516 | -4/Lab | Gained access to the hidden lab's interior 24533 | -4/Lab | Found Alien Artifact 24540 | -4/Lab | Found Alien Artifact 24540 | -4/Lab | Identified Integrated Reactor 24540 | -4/Lab | Installed Integrated Reactor, increased core energy generation (+10) 24548 | -4/Lab | Found Alien Artifact 24548 | -4/Lab | Identified Core Expander 24548 | -4/Lab | Installed Core Expander, added new Propulsion slot 24558 | -4/Lab | Found Alien Artifact 24645 | -4/Lab | Build established: Mutant 24703 | -4/Lab | Found Prototype Hackware 24705 | -4/Lab | Found Prototype Protection 24719 | -4/Lab | Identified Quantum Router 24720 | -4/Lab | Found Prototype Special Weapon 24829 | -4/Lab | Identified Gui. Remote Datajack 24836 | -4/Lab | Identified Med. Regenerative Plating 24850 | -4/Lab | Entered Research 24850 | -3/Research | Evolved 2 slots: Power x1, Utility x1 24851 | -3/Research | Identified exit to Research 24851 | -3/Research | Identified exit to Quarantine 25050 | -3/Research | Revision forces began assault on 0b10 25074 | -3/Research | Build established: Bothacker-Mutant 25089 | -3/Research | Met up with Revision 17++ 25443 | -3/Research | Discovered exit to Quarantine (range 6) 25466 | -3/Research | Entered Quarantine 25515 | -3/Quarantine | Identified Core Reset Matrix 25744 | -3/Quarantine | Repaired Centrium Medium Armor Plating 25954 | -3/Quarantine | Found Alien Energy Cannon 25985 | -3/Quarantine | Discovered exit to Research (range 16) 26087 | -3/Quarantine | Found Alien Artifact 26119 | -3/Quarantine | Found Alien Artifact 26120 | -3/Quarantine | Identified Subatomic Replicator 26120 | -3/Quarantine | Forged Prototype Slashing Weapon 26482 | -3/Quarantine | Assimilated Fortress with formatsys_high 26571 | -3/Quarantine | Discovered new exit (range 6) 26571 | -3/Quarantine | Discovered new exit (range 7) 26680 | -3/Quarantine | Entered Protoforge 26680 | -3/Protoforge | Accompanied by 1 ally 26725 | -3/Protoforge | Build established: Hacker-Mutant 26735 | -3/Protoforge | Superfortress began startup sequence 26823 | -3/Protoforge | Discovered exit to Research (range 13) 26979 | -3/Protoforge | Spotted Hotshot 27024 | -3/Protoforge | Allies destroyed Hotshot 27032 | -3/Protoforge | Spotted Hotshot 27062 | -3/Protoforge | Spotted Hotshot 27062 | -3/Protoforge | Spotted Hotshot 27062 | -3/Protoforge | Allies destroyed Hotshot 27068 | -3/Protoforge | Destroyed Hotshot 27077 | -3/Protoforge | Allies destroyed Hotshot 27180 | -3/Protoforge | First assault squad dispatched 27190 | -3/Protoforge | Found Cep. Antimissile System 27217 | -3/Protoforge | Identified Terrabomb 27217 | -3/Protoforge | Used Terrabomb 27217 | -3/Protoforge | Additional patrols dispatched to research labs 27246 | -3/Protoforge | Found Crosscalibrator 27250 | -3/Protoforge | Identified Transdimensional Reconstructor 27254 | -3/Protoforge | Spotted Immortal 27258 | -3/Protoforge | Spotted Immortal 27261 | -3/Protoforge | Spotted Immortal 27263 | -3/Protoforge | Spotted Immortal 27271 | -3/Protoforge | Spotted Immortal 27285 | -3/Protoforge | Assimilated Immortal with formatsys_high 27285 | -3/Protoforge | Assimilated Immortal with formatsys_high 27300 | -3/Protoforge | Allies destroyed Immortal 27306 | -3/Protoforge | Found Exp. Melee Analysis Suite 27319 | -3/Protoforge | Spotted Immortal 27356 | -3/Protoforge | Rewired Immortal 27378 | -3/Protoforge | Destroyed Immortal 27391 | -3/Protoforge | Destroyed Immortal 27422 | -3/Protoforge | Lost 8 parts (1p5n1u1w) 27428 | -3/Protoforge | Found Exp. Jetlance 27544 | -3/Protoforge | Found Cep. Zero-point Core 27555 | -3/Protoforge | Found Cep. Zero-point Core 27600 | -3/Protoforge | Spotted Decapitator 27600 | -3/Protoforge | Spotted Decapitator 27600 | -3/Protoforge | Spotted Decapitator 27600 | -3/Protoforge | Spotted Decapitator 27608 | -3/Protoforge | Destroyed Decapitator 27610 | -3/Protoforge | Core integrity fell below 50% 27611 | -3/Protoforge | Destroyed Decapitator 27612 | -3/Protoforge | Destroyed Decapitator 27627 | -3/Protoforge | Destroyed Decapitator 27656 | -3/Protoforge | Spotted Immortal 27656 | -3/Protoforge | Spotted Immortal 27684 | -3/Protoforge | Destroyed Immortal 27686 | -3/Protoforge | Destroyed Immortal 27697 | -3/Protoforge | Found Exp. Jetlance 27707 | -3/Protoforge | Found Exp. Melee Analysis Suite 27708 | -3/Protoforge | Lost 5 parts (4n1u) 27809 | -3/Protoforge | Found Femtoactuators 27813 | -3/Protoforge | Found Cep. Melee Reflex Suite 27821 | -3/Protoforge | Found Cep. Weapon Articulator 27988 | -3/Protoforge | Spotted Decapitator 27988 | -3/Protoforge | Spotted Decapitator 27988 | -3/Protoforge | Spotted V998-l 27988 | -3/Protoforge | Spotted V021-a 27989 | -3/Protoforge | Spotted Decapitator 28001 | -3/Protoforge | Destroyed Decapitator 28004 | -3/Protoforge | Destroyed Decapitator 28014 | -3/Protoforge | Destroyed Decapitator 28016 | -3/Protoforge | Destroyed V998-l 28037 | -3/Protoforge | Destroyed 8 combat bots 28044 | -3/Protoforge | Destroyed V021-a 28091 | -3/Protoforge | Found Exp. EM Shield 28097 | -3/Protoforge | Build established: Scavenger-Gladiator 28169 | -3/Protoforge | System corruption reached 10% 28251 | -3/Protoforge | Spotted Decapitator 28251 | -3/Protoforge | Spotted Decapitator 28251 | -3/Protoforge | Spotted Decapitator 28251 | -3/Protoforge | Spotted Decapitator 28266 | -3/Protoforge | Destroyed Decapitator 28269 | -3/Protoforge | Destroyed Decapitator 28270 | -3/Protoforge | Destroyed Decapitator 28273 | -3/Protoforge | Destroyed Decapitator 28301 | -3/Protoforge | Found Cep. Antigrav Storage Unit 28315 | -3/Protoforge | Found Cep. Chromion Battery 28318 | -3/Protoforge | Found Cep. Chromion Battery 28431 | -3/Protoforge | Spotted Immortal 28431 | -3/Protoforge | Spotted Immortal 28450 | -3/Protoforge | Destroyed Immortal 28463 | -3/Protoforge | Destroyed Immortal 28494 | -3/Protoforge | Spotted V856-q 28494 | -3/Protoforge | Spotted V772-q 28509 | -3/Protoforge | Found Faulty Cep. Plasma Driver 28514 | -3/Protoforge | Found Faulty Cep. Plasma Driver 28569 | -3/Protoforge | Spotted Hotshot 28569 | -3/Protoforge | Spotted Hotshot 28569 | -3/Protoforge | Spotted Hotshot 28569 | -3/Protoforge | Spotted Hotshot 28625 | -3/Protoforge | Destroyed Hotshot 28630 | -3/Protoforge | Destroyed Hotshot 28637 | -3/Protoforge | Destroyed Hotshot 28640 | -3/Protoforge | Destroyed Hotshot 28658 | -3/Protoforge | Found Faulty Cep. Energy Mantle 28667 | -3/Protoforge | Found Cep. Core Shell 28680 | -3/Protoforge | Found Cep. Reaction Jets 28708 | -3/Protoforge | Found Faulty Cep. Energy Mantle 28749 | -3/Protoforge | Spotted AP7-3 28749 | -3/Protoforge | Spotted AP7-3 28816 | -3/Protoforge | Found Cep. RG22 Armor 28818 | -3/Protoforge | Core integrity fell below 20% 28819 | -3/Protoforge | Destroyed AP7-3 28847 | -3/Protoforge | Lost 4 parts (1n3u) 28849 | -3/Protoforge | Destroyed AP7-3 28862 | -3/Protoforge | Found Cep. Beam Splitter 28935 | -3/Protoforge | Found Cep. Navigation Harness 28943 | -3/Protoforge | Found Transdimensional Reconstructor 29048 | -3/Protoforge | Destroyed 7 combat bots 29206 | -3/Protoforge | Found Cep. Cloak Mesh 29210 | -3/Protoforge | Found Cep. Cloak Mesh 29216 | -3/Protoforge | Found Cep. Impact Drone Bay 29421 | -3/Protoforge | Found Cep. Combat Aerolev Unit 29423 | -3/Protoforge | Found Faulty Cep. Combat Aerolev Unit 29448 | -3/Protoforge | Found Cep. Gyrokinetic System 29453 | -3/Protoforge | Crushed by falling debris 29464 | -3/Protoforge | Found Cep. Core Shell 29479 | -3/Protoforge | Entered Research 29479 | -2/Research | Evolved 2 slots: Propulsion x1, Utility x1 29531 | -2/Research | Repaired Centrium Medium Armor Plating 29579 | -2/Research | Spotted B-90 Cyclops 29632 | -2/Research | Found Exp. Signal Interpreter 29755 | -2/Research | Identified exit to DSF 29761 | -2/Research | Unchained authorized (CL-0N3) 29851 | -2/Research | Discovered new exit (range 11) 29883 | -2/Research | Identified exit to Access 29972 | -2/Research | Identified exit to Testing 30044 | -2/Research | Discovered exit to Access (range 14) 30073 | -2/Research | Build established: Gladiator 30115 | -2/Research | U-05 Engineer reconstituted as V2 30115 | -2/Research | Spotted V2 30125 | -2/Research | Destroyed V2 30125 | -2/Research | V2 reconstituted as CL-0N3 30163 | -2/Research | Destroyed 10 combat bots 30249 | -2/Research | Entered Testing 30289 | -2/Testing | Repaired Centrium Medium Armor Plating 30349 | -2/Testing | Found Prototype Hackware 30415 | -2/Testing | Found Prototype Ballistic Cannon 30415 | -2/Testing | Identified Perforator 30420 | -2/Testing | Identified System Mapper 30451 | -2/Testing | Unchained authorized (CL-0N3) 30691 | -2/Testing | U-05 Engineer reconstituted as V2 30691 | -2/Testing | Spotted V2 30700 | -2/Testing | Destroyed V2 30700 | -2/Testing | V2 reconstituted as CL-0N3 30722 | -2/Testing | System corruption reached 10% 30999 | -2/Testing | First assault squad dispatched 31038 | -2/Testing | U-05 Engineer reconstituted as S7 Guard 31038 | -2/Testing | Spotted S7 Guard 31042 | -2/Testing | Destroyed S7 Guard 31042 | -2/Testing | S7 Guard reconstituted as CL-0N3 31044 | -2/Testing | Allies destroyed CL-0N3 31049 | -2/Testing | Found Prototype Hover Unit 31050 | -2/Testing | Extracted schematics, analyses from CL-0N3's data core 31075 | -2/Testing | Build established: Hacker-Gladiator 31239 | -2/Testing | Found Prototype Device 31239 | -2/Testing | Identified 2N-1CE's Frost Array 31332 | -2/Testing | Found Prototype Energy Cannon 31333 | -2/Testing | Identified Cld. Nova Cannon 31334 | -2/Testing | Destroyed 7 combat bots 31407 | -2/Testing | Entered Access 31407 | -1/Access | Evolved 2 slots: Power x1, Utility x1 31409 | -1/Access | Identified CL-0N3's Metamass Displacer 31456 | -1/Access | Repaired Centrium Medium Armor Plating 31573 | -1/Access | Spotted B-99 Colossus 31627 | -1/Access | Spotted B-99 Colossus 31736 | -1/Access | Discovered new exit (range 8) 31743 | -1/Access | Entered Command 31859 | -1/Command | Spotted M Guard 31860 | -1/Command | Spotted Combat Programmer 31872 | -1/Command | Spotted Combat Programmer 31874 | -1/Command | Destroyed Combat Programmer 31880 | -1/Command | Destroyed Combat Programmer 31950 | -1/Command | Spotted M Guard 31953 | -1/Command | Destroyed M Guard 31991 | -1/Command | Destroyed M Guard 31991 | -1/Command | All MAIN.C guards destroyed 31992 | -1/Command | Found Prototype Reactor 31992 | -1/Command | Identified Zero-point Reactor 31993 | -1/Command | First assault squad dispatched 31995 | -1/Command | Found Prototype Device 31995 | -1/Command | Identified Thermal Barrier 31997 | -1/Command | Found Prototype Device 31997 | -1/Command | Identified AEGIS Remote Shield 32008 | -1/Command | Found Zero-point Reactor 32010 | -1/Command | Found Zero-point Reactor 32012 | -1/Command | Found Prototype Protection 32012 | -1/Command | Identified Hvy. Regenerative Plating 32213 | -1/Command | Met MAIN.C 32231 | -1/Command | Destroyed MAIN.C Shell 32232 | -1/Command | MAIN.C activated Command garrisons 32232 | -1/Command | 0b10 Conduit disabled 32257 | -1/Command | Destroyed MAIN.C 32258 | -1/Command | Discovered new exit (range 40) 32258 | -1/Command | Discovered new exit (range 110) 32258 | -1/Command | Extracted map data and part IDs from MAIN.C's data core 32284 | -1/Command | Found Exp. System Purifier 32495 | -1/Command | Build established: Scavenger-Mutant 32939 | -1/Command | Found Zero-point Reactor 32960 | -1/Command | Found Exp. Armor Integrity Analyzer 33043 | -1/Command | Found Exp. Phase Shifter 33247 | -1/Command | Build established: Mutant 33377 | -1/Command | Found Exp. Core Analyzer 33496 | -1/Command | Warped through subspace to slip node 33496 | -1/Command | Discovered new exit (range 4) 33499 | -1/Command | Found Exp. Core Analyzer 33502 | -1/Command | Entered Access_0 33503 | -1/Access_0 | Met Architect 33507 | -1/Access_0 | Destroyed A8 33510 | -1/Access_0 | Architect warped through subspace 33555 | -1/Access_0 | Architect warped through subspace 33565 | -1/Access_0 | Subspace Access Node disabled 33601 | -1/Access_0 | Architect warped through subspace 33617 | -1/Access_0 | Subspace Access Node disabled 33630 | -1/Access_0 | Architect warped through subspace 33652 | -1/Access_0 | Architect warped through subspace 33652 | -1/Access_0 | Found Prototype Protection 33659 | -1/Access_0 | A6 warped into view 33676 | -1/Access_0 | Destroyed A6 33678 | -1/Access_0 | Identified Centrium Linked Plating 33682 | -1/Access_0 | Architect warped through subspace 33701 | -1/Access_0 | Architect warped through subspace 33717 | -1/Access_0 | Architect warped through subspace 33724 | -1/Access_0 | Found Alien Energy Gun 33734 | -1/Access_0 | Architect warped through subspace 33750 | -1/Access_0 | Architect warped through subspace 33771 | -1/Access_0 | Architect warped through subspace 33773 | -1/Access_0 | Found Centrium Linked Plating 33774 | -1/Access_0 | Identified Modified Sigix Sheargun 33783 | -1/Access_0 | Architect warped through subspace 33792 | -1/Access_0 | Subspace Access Node disabled 33804 | -1/Access_0 | Architect warped through subspace 33821 | -1/Access_0 | A5 warped into view 33832 | -1/Access_0 | Destroyed A5 33837 | -1/Access_0 | Architect warped through subspace 33848 | -1/Access_0 | Destroyed A2 33849 | -1/Access_0 | Extracted Singularity Gate Test 138-C access codes from A2's data core 33877 | -1/Access_0 | Architect warped through subspace 33929 | -1/Access_0 | Singularity Gate disabled 33934 | -1/Access_0 | Singularity Gate disabled 33935 | -1/Access_0 | Architect warped through subspace 33976 | -1/Access_0 | Architect warped through subspace 34001 | -1/Access_0 | Architect warped through subspace 34029 | -1/Access_0 | Architect warped through subspace 34030 | -1/Access_0 | Found Centrium Linked Plating 34041 | -1/Access_0 | Architect warped through subspace 34053 | -1/Access_0 | Subspace Access Node disabled 34085 | -1/Access_0 | Destroyed Architect 34086 | -1/Access_0 | Extracted unknown sensor trigger ID from Architect's data core 34087 | -1/Access_0 | Found Centrium Linked Plating 34115 | -1/Access_0 | A4 warped into view 34131 | -1/Access_0 | Destroyed A4 34150 | -1/Access_0 | Found Integrated Mediator 34150 | -1/Access_0 | Installed Integrated Mediator, increased core attachment efficiency 34287 | -1/Access_0 | A3 warped into view 34306 | -1/Access_0 | Build established: Scavenger-Mutant 34317 | -1/Access_0 | Allies destroyed A3 34323 | -1/Access_0 | Found Prototype Ballistic Gun 34324 | -1/Access_0 | Identified A3's Sniper Rifle 34370 | -1/Access_0 | Found Hpw. Transdimensional Reconstructor 34372 | -1/Access_0 | Found Zero-point Reactor 34665 | -1/Access_0 | Found Sigix Corpse 34689 | -1/Access_0 | Found Hpw. Transdimensional Reconstructor 34744 | -1/Access_0 | Found Core Expander 34801 | -1/Access_0 | Found Modified Sigix Sheargun 34803 | -1/Access_0 | Found Modified Sigix Sheargun 34804 | -1/Access_0 | Warped through subspace to slip node 34804 | -1/Access_0 | Discovered new exit (range 8) 34811 | *** | Establishing 0b11! Last Messages --------------- 34676_ Impact Drone released from Cep. Impact Drone Bay. 34686_ Workstation disabled. 34689_ Dropped Transdimensional Reconstructor. 34689_ Acquired Hpw. Transdimensional Reconstructor. 34689_ Dropped Adv. Phase Shifter. 34690_ Acquired Transdimensional Reconstructor. 34693_ System corrupted: Energy discharge (-185). 34710_ M1&P&JO% YTZKAZKLWF4S JKO:BILIUZD4HTPHYB 34721_ Acquired 5 matter. 34727_ Dropped Cmb. Linear Gravjet+. 34744_ Acquired Core Expander. 34750_ Impact Drone retrieved by Cep. Impact Drone Bay (no repairs). 34760_ Acquired 5 matter. 34762_ System corrupted: Heat flow error (+278). 34800_ Dropped Perforator. 34801_ Acquired Modified Sigix Sheargun. 34804_ Warped through subspace, drawn to slip node. 34804_ EXIT=FOUND 34806_ Core Expander installation failed. 34808_ Acquired Perforator. Map ----- +----------------------------------------------------+ | | | | | | | | | | | | | | | | | | | | | | | | | | | | | | | | | ?????????????????????????????????????????????????? | | ?????????????????????????????????????????????????? | | ?????????????????????????????????????????????????? | | ?????????????????????????????????????????????????? | | ?????????????????????????????????????????????????? | | ?????????????????????????????????????????????????? | | ????????????????????????###??????????????????????? | | ???????????????????????## ##?????????????????????? | | ???????????????????????# #?????????????????????? | | ???????????????????????# @ #?????????????????????? | | ??????????????????????## #?????????????????????? | | ??????????????????????# #?????????????????????? | | ??????????????????????# ##?????????????????????? | | ??????????????????????## #?????????????????????? | | ??????????????????????# #?????????????????????? | | ??????????????????????# ##?????????????????????? | | ??????????????????????# < #?????????????????????? | | ??????????????????????# ##?????????????????????? | | ??????????????????????## #??????????????????????? | | ???????????????????????####??????????????????????? | | ?????????????????????????????????????????????????? | | ?????????????????????????????????????????????????? | | ?????????????????????????????????????????????????? | | ?????????????????????????????????????????????????? | | ?????????????????????????????????????????????????? | | ?????????????????????????????????????????????????? | | ?????????????????????????????????????????????????? | | ?????????????????????????????????????????????????? | | ?????????????????????????????????????????????????? | | ?????????????????????????????????????????????????? | | ?????????????????????????????????????????????????? | | ?????????????????????????????????????????????????? | | ?????????????????????????????????????????????????? | | ?????????????????????????????????????????????????? | +----------------------------------------------------+ Best States ------------- Heat Dissipation 152 Energy Generation 99 Energy Capacity 870 Matter Stores 300 Matter Capacity 500 Sight Range 16 Robot Scan Range 20 Terrain Scan Density 10 Jamming Range 14 Cloak Strength 9 EM Shielding 4 Armor Coverage 1100 Resistance: TH 75 Resistance: EM 75 Core Shielding 90 Utility Shielding 66 Point Defense Rating 480 Melee Speed Boost 50 Phase Shifting 20 Evasion (%) 95 Targeting Accuracy 30 Melee Accuracy 24 Core Analysis 8 Armor Integrity Analysis 50 Recoil Reduction 4 Force Boost 40 Salvage Targeting 2 Offensive Hacking 28 Defensive Hacking 25 Relay Coupler Types 1 Relay Coupler Value 34 Item Schematics ----------------- CPS Tube | -6/Factory | Scanalyzed Mak. Coolant Network | -5/Hub_04(d) | Extrapolated Mak. Hacking Suite | -5/Hub_04(d) | Extrapolated Mak. Terrain Scanner | -5/Hub_04(d) | Extrapolated Mak. Medium Armor Plating | -5/Hub_04(d) | Extrapolated Mak. Ablative Armor | -5/Hub_04(d) | Extrapolated 0b10 Decoder Chip [Skirmisher] | -5/Hub_04(d) | Extrapolated 0b10 Decoder Chip [Generic] | -5/Hub_04(d) | Extrapolated 0b10 Decoder Chip [Scout] | -5/Hub_04(d) | Extrapolated Hvy. Beamcaster | -5/Garrison | Extrapolated Multireflex Exoskeleton | -3/Research | Hacked Plasma Sword | -3/Protoforge | Archive Tiamat Missile Launcher | -3/Protoforge | Archive Exp. Power Amplifier | -3/Protoforge | Archive Exp. Targeting Computer | -3/Protoforge | Archive Nanosword | -3/Protoforge | Archive Centrium Heavy Armor Plating | -3/Protoforge | Archive Enh. Biometal Leg | -3/Protoforge | Archive Robot Schematics ------------------ P-70 Sage | -3/Protoforge | Archive E-15 Imp | -3/Protoforge | Archive K-01 Serf | -2/Testing | Archive T-07 Excavator | -2/Testing | Archive A-02 Transporter | -2/Testing | Archive A-15 Conveyor | -2/Testing | Archive R-06 Scavenger | -2/Testing | Archive R-10 Processor | -2/Testing | Archive M-14 Sweeper | -2/Testing | Archive M-22 Extractor | -2/Testing | Archive M-30 Cleanser | -2/Testing | Archive M-13 Machinist | -2/Testing | Archive M-28 Smith | -2/Testing | Archive M-36 Artificer | -2/Testing | Archive O-16 Technician | -2/Testing | Archive O-24 Administrator | -2/Testing | Archive O-32 Director | -2/Testing | Archive W-16 Scout | -2/Testing | Archive W-25 Informer | -2/Testing | Archive W-44 Eye | -2/Testing | Archive S-10 Pest | -2/Testing | Archive S-27 Virus | -2/Testing | Archive S-43 Plague | -2/Testing | Archive G-34 Mercenary | -2/Testing | Archive G-47 Trooper | -2/Testing | Archive G-50 Soldier | -2/Testing | Archive G-67 Veteran | -2/Testing | Archive G-73 Enforcer | -2/Testing | Archive B-36 Bruiser | -2/Testing | Archive B-48 Gladiator | -2/Testing | Archive B-60 Warrior | -2/Testing | Archive B-74 Champion | -2/Testing | Archive L-31 Rogue | -2/Testing | Archive L-41 Fighter | -2/Testing | Archive L-61 Swordsman | -2/Testing | Archive Y-45 Defender | -2/Testing | Archive Y-54 Guardian | -2/Testing | Archive Y-64 Sentinel | -2/Testing | Archive Y-72 Warden | -2/Testing | Archive D-53 Grenadier | -2/Testing | Archive D-63 Destroyer | -2/Testing | Archive D-83 Annihilator | -2/Testing | Archive X-57 Shotgunner | -2/Testing | Archive X-62 Marksman | -2/Testing | Archive X-67 Chaingunner | -2/Testing | Archive X-72 Disruptor | -2/Testing | Archive X-77 Beamer | -2/Testing | Archive X-82 Rainmaker | -2/Testing | Archive X-87 Electro | -2/Testing | Archive H-55 Commando | -2/Testing | Archive H-66 Slayer | -2/Testing | Archive H-77 Assassin | -2/Testing | Archive H-88 Terminator | -2/Testing | Archive P-60 Hacker | -2/Testing | Archive P-80 Master | -2/Testing | Archive Fabricated ------------ E-15 Imp | x2 | -4/Factory | Preloaded Repaired ---------- CPS Tube | 99% | -6/Factory | Broken Microactuators | 40% | -6/Factory Centrium Medium Armor Plating | 15% | -4/Factory Adv. Force Booster | 72% | -4/Factory | Broken Enh. Biometal Leg | 36% | -4/Factory | Broken Centrium Medium Armor Plating | 17% | -4/Factory Centrium Medium Armor Plating | 18% | -4/Armory Centrium Medium Armor Plating | 3% | -4/Armory Centrium Medium Armor Plating | 60% | -3/Quarantine Centrium Medium Armor Plating | 46% | -2/Research Centrium Medium Armor Plating | 79% | -2/Testing Centrium Medium Armor Plating | 80% | -1/Access Studied --------- Arm. Leg | -6/Factory | Hacked Flexi-carbon Leg | -4/Factory | Hacked Hvy. Shield Leg | -3/Research | Hacked Centrium Leg | -3/Research | Hacked Cmb. Linear Gravjet | -3/Research | Hacked Lgt. Quantum Reactor | -3/Research | Hacked Quantum Reactor | -3/Research | Hacked Imp. Thunder Leg | -3/Quarantine | Hacked Myomer Leg | -3/Quarantine | Hacked Alien Tech Used ----------------- Integrated Reactor Core Expander Subatomic Replicator Terrabomb Transdimensional Reconstructor Modified Sigix Sheargun Integrated Mediator High-powered Transdimensional Reconstructor Achievements -------------- Better Safe Than Exploded Frienemies Challenges ------------ None Game ------ Seed ZhirovDiametricPick Manual? 0 Play Time 06:10:01 Cumulative 895.9 hours Start 2025.11.08 @ 17:05:29 End 2025.11.09 @ 13:24:44 Sessions 3 Manual Loads 0 Difficulty Rogue Special Mode None Game No. 810 Rogue 723 Adventurer 87 Explorer 0 Win Type 1 Total 59 Types 9/6/31/2/1/1/5/1/1/2 Lore% 97 Gallery% 93 Achievement% 67 Wizard Run 0 Options --------- Layout 0 ASCII 0 Keyboard 1 Movement Numpad Keybinds 0 Fullscreen 2 Font 18/SmallcapsGlow Map View 76x50 Zoom Use 0% Tactical HUD 1 Map Filters NONE Filters NONE Steam 1 RUN: 366963f6-8065-4da6-a3ca-88d2d5508ace